Workbook

Sheet BExRepositorySheet (hidden)
A1: 7

Sheet Ingresos
A3: EMPRESA DE ACUEDUCTO ALCANTARILLADO DE BOGOTA
A4: EJECUCION PRESUPUESTAL DE INGRESOS
A5: A 31 DE OCTUBRE DE 2019
C6: 1 | D6: 2 | E6: 3 | F6: 4 | G6: 5 | H6: 6 | I6: 7=(6/4) | J6: 8=(4-6)
A7: CODIGO SECRETARIA DE HACIENDA | B7: RUBRO | C7: PRESUPUESTO INICIAL | D7: MODIFICACIONES MES | E7: MODIFICACIONES ACUMULADAS | F7: PRESUPUESTO DEFINITIVO | G7: RECAUDOS MES | H7: RECAUDOS ACUMULADOS | I7: % EJEC PPTAL | J7: SALDO POR RECAUDAR
A8: TOTAL INGRESOS + DISPONIBILIDAD INICIAL | C8: 5419077626000 | E8: 306843335701 | F8: 5725920961701 | G8: 202193669512 | H8: 2879409497288 | I8: 0.5028727285 | J8: 2846511464413
A9: 310000000000000 | B9: DISPONIBILIDAD INICIAL | C9: 813719123000 | E9: 272051141955 | F9: 1085770264955 | H9: 1085764117842 | I9: 0.9999943385 | J9: 6147113
A10: 310000000000000 | B10: DISPONIBILIDAD INICIAL | C10: 813719123000 | E10: 272051141955 | F10: 1085770264955 | H10: 1085764117842 | I10: 0.9999943385 | J10: 6147113
A11: 320000000000000 | B11: INGRESOS | C11: 4605358503000 | E11: 34792193746 | F11: 4640150696746 | G11: 202193669512 | H11: 1793645379446 | I11: 0.38654895 | J11: 2846505317300
A12: 321000000000000 | B12: INGRESOS CORRIENTES | C12: 2165376401000 | E12: -476 | F12: 2165376400524 | G12: 156671065334 | H12: 1504109630487 | I12: 0.6946180951 | J12: 661266770037
A13: 321010000000000 | B13: INGRESOS DE EXPLOTACION | C13: 1758896574000 | F13: 1758896574000 | G13: 156079599225 | H13: 1490240103297 | I13: 0.8472585173 | J13: 268656470703
A14: 321010200000000 | B14: VENTA DE SERVICIOS | C14: 1733463321000 | F14: 1733463321000 | G14: 153389280067 | H14: 1462261121574 | I14: 0.8435489254 | J14: 271202199426
A15: 321010201000000 | B15: SERVICIO ACUEDUCTO | C15: 944794737000 | F15: 944794737000 | G15: 78790349428 | H15: 754480078196 | I15: 0.7985650731 | J15: 190314658804
A16: 321010202000000 | B16: SERVICIO ALCANTARILLADO | C16: 788668584000 | F16: 788668584000 | G16: 74598930639 | H16: 706312917442 | I16: 0.8955763318 | J16: 82355666558
A17: 321010203000000 | B17: SERVICIO ASEO | H17: 1468125936 | J17: -1468125936
A18: 321019900000000 | B18: OTROS INGRESOS DE EXPLOTACION | C18: 25433253000 | F18: 25433253000 | G18: 2690319158 | H18: 27978981723 | I18: 1.100094499 | J18: -2545728723
A19: 321019902000000 | B19: INTERESES A USUARIOS | C19: 2900648000 | F19: 2900648000 | G19: 444752969 | H19: 3599099611 | I19: 1.240791579 | J19: -698451611
A20: 321019903000000 | B20: PUBLICACIONES | C20: 5700000 | F20: 5700000 | G20: 2257437 | H20: 25294986 | I20: 4.437716842 | J20: -19594986
A21: 321019904000000 | B21: SERVICIOS | C21: 639109000 | F21: 639109000 | G21: 24417732 | H21: 344421811 | I21: 0.5389093425 | J21: 294687189
A22: 321019905000000 | B22: CUOTAS PARTES PENSIONALES | G22: 117165545 | H22: 1413689767 | J22: -1413689767
A23: 321019906000000 | B23: EXTRAORDINARIOS RECUPERACIÓN | G23: 1370454833 | H23: 7240886192 | J23: -7240886192
A24: 321019907000000 | B24: INGRESOS CENTRAL HIDROELÉCTRICA | C24: 11085124000 | F24: 11085124000 | H24: 5948033329 | I24: 0.5365779696 | J24: 5137090671
A25: 321019908000000 | B25: SANCIONES Y MULTAS | G25: 2902916 | H25: 192748952 | J25: -192748952
A26: 321019909000000 | B26: COMISIONES | C26: 10802672000 | F26: 10802672000 | G26: 728367726 | H26: 9214807075 | I26: 0.8530118359 | J26: 1587864925
A27: 321020000000000 | B27: OTROS INGRESOS CORRIENTES | C27: 406479827000 | E27: -476 | F27: 406479826524 | G27: 591466109 | H27: 13869527190 | I27: 0.03412107142 | J27: 392610299334
A28: 321020100000000 | B28: RENTAS CONTRACTUALES | C28: 406479827000 | E28: -476 | F28: 406479826524 | G28: 591466109 | H28: 13869527190 | I28: 0.03412107142 | J28: 392610299334
A29: 321020199000000 | B29: OTRAS RENTAS CONTRACTUALES | C29: 406479827000 | E29: -476 | F29: 406479826524 | G29: 591466109 | H29: 13869527190 | I29: 0.03412107142 | J29: 392610299334
A30: 322000000000000 | B30: TRANSFERENCIAS | C30: 239567781000 | E30: 25315303810 | F30: 264883084810 | G30: 33572940081 | H30: 126523473624 | I30: 0.4776578078 | J30: 138359611186
A31: 322030000000000 | B31: MUNICIPIOS | C31: 1601000000 | F31: 1601000000 | H31: 1938779365 | I31: 1.21098024 | J31: -337779365
A32: 322030000000000 | B32: MUNICIPIOS | C32: 1601000000 | F32: 1601000000 | H32: 1938779365 | I32: 1.21098024 | J32: -337779365
A33: 322040000000000 | B33: ADMINISTRACION CENTRAL | C33: 237966781000 | E33: 25315303810 | F33: 263282084810 | G33: 33572940081 | H33: 124584694259 | I33: 0.4731985253 | J33: 138697390551
A34: 322040300000000 | B34: SECRETARIA DISTRITAL DE HACIENDA | C34: 81747001000 | E34: 1277125638 | F34: 83024126638 | H34: 25205848055 | I34: 0.3035966661 | J34: 57818278583
A35: 322040500000000 | B35: SDH - MÍNIMO VITAL | C35: 71465000000 | F35: 71465000000 | G35: 33572940081 | H35: 66824206032 | I35: 0.9350620028 | J35: 4640793968
A36: 322040600000000 | B36: SDH - LEY 99 DE 1993 | C36: 84754780000 | F36: 84754780000 | J36: 84754780000
A37: 322040800000000 | B37: LEY 99 DE 1993, SUBSIDIOS Y MÍNIMO VITAL - VIGENCIA ANTERIOR | E37: 24038178172 | F37: 24038178172 | H37: 32554640172 | I37: 1.354288996 | J37: -8516462000
A38: 323000000000000 | B38: RECURSOS DE CAPITAL | C38: 2200414321000 | E38: 9476890412 | F38: 2209891211412 | G38: 11949664097 | H38: 163012275335 | I38: 0.07376484168 | J38: 2046878936077
A39: 323010000000000 | B39: RECURSOS DEL CREDITO | C39: 1976633221000 | E39: 7134971405 | F39: 1983768192405 | J39: 1983768192405
A40: 323010100000000 | B40: CREDITO INTERNO | C40: 1976633221000 | E40: 7134971405 | F40: 1983768192405 | J40: 1983768192405
A41: 323010101000000 | B41: VIGENCIA | C41: 1976633221000 | E41: 7134971405 | F41: 1983768192405 | J41: 1983768192405
A42: 323020000000000 | B42: RENDIMIENTOS POR OPERACIONES FINANCIERAS | C42: 73532847000 | F42: 73532847000 | G42: 10939945847 | H42: 121668288307 | I42: 1.654611419 | J42: -48135441307
A43: 323020000000000 | B43: RENDIMIENTOS POR OPERACIONES FINANCIERAS | C43: 73532847000 | F43: 73532847000 | G43: 10939945847 | H43: 121668288307 | I43: 1.654611419 | J43: -48135441307
A44: 323090000000000 | B44: OTROS RECURSOS DE CAPITAL | C44: 150248253000 | E44: 2341919007 | F44: 152590172007 | G44: 1009718250 | H44: 41343987028 | I44: 0.2709479024 | J44: 111246184979
A45: 323090100000000 | B45: RECUPERACION PRESTAMOS - BIENESTAR | C45: 15650001000 | F45: 15650001000 | G45: 904268970 | H45: 7935039038 | I45: 0.507031216 | J45: 7714961962
A46: 323090200000000 | B46: INDEMNIZACIONES COMPAÑIAS DE SEGURO | G46: 105449280 | H46: 445070446 | J46: -445070446
A47: 323090300000000 | B47: RECURSOS FIDUCIA | C47: 103976295000 | E47: -1537 | F47: 103976293463 | J47: 103976293463
A48: 323099900000000 | B48: OTROS | C48: 30621957000 | E48: 2341920544 | F48: 32963877544 | H48: 32963877544 | I48: 1

Sheet Gastos
A2: EMPRESA DE ACUEDUCTO ALCANTARILLADO DE BOGOTA
A3: EJECUCION PRESUPUESTAL DE GASTOS
A4: A 31 OCTUBRE DEL 2019 | C4: 1 | D4: 2 | E4: 3 | F4: 4=(1+3) | G4: 5 | H4: 6=(4-5) | I4: 7 | J4: 8 | K4: 9=(8/6) | L4: 11 | M4: 12 | N4: 13=(12/6)
A5: CODIGO SECRETARIA DE HACIENDA | B5: RUBRO | C5: PRESUPUESTO INICIAL | D5: MODIFICACIONES MES | E5: MODIFICACIONES ACUMULADAS | F5: PRESUPUESTO DEFINITIVO | G5: SUSPENSION | H5: APROPIACION DISPONIBLE | I5: COMPROMISOS MES | J5: COMPROMISOS ACUMULADOS | K5: % EJEC PPTAL | L5: AUTORIZACIONES DE GIRO | N5: % EJEC AUT. GIRO
L6: MES | M6: ACUMULADO
A7: TOTAL GASTOS + DISPONIBILIDAD FINAL | C7: 5419077626000 | E7: 306843335701 | F7: 5725920961701 | H7: 5725920961701 | I7: 90524800005 | J7: 2926609539336 | K7: 0.5111159513 | L7: 124762610033 | M7: 1586812222920 | N7: 0.27712786
A8: 330000000000000 | B8: GASTOS | C8: 5180526062000 | E8: 118974927264 | F8: 5299500989264 | H8: 5299500989264 | I8: 90524800005 | J8: 2926609539336 | K8: 0.5522424744 | L8: 124762610033 | M8: 1586812222920 | N8: 0.2994267245
A9: 331000000000000 | B9: GASTOS DE FUNCIONAMIENTO | C9: 1291563643000 | E9: 67092561782 | F9: 1358656204782 | H9: 1358656204782 | I9: 63457063964 | J9: 1101708330525 | K9: 0.8108808738 | L9: 64120565777 | M9: 887247748990 | N9: 0.653033303
A10: 331010000000000 | B10: SERVICIOS PERSONALES | C10: 358789399000 | D10: -2273551039 | E10: 1264263543 | F10: 360053662543 | H10: 360053662543 | I10: 20781027182 | J10: 274037370079 | K10: 0.7611014651 | L10: 23941621352 | M10: 247525433399 | N10: 0.6874681725
A11: 331010100000000 | B11: SERVICIOS PERSONALES ASOCIADOS A LA NOMINA | C11: 225857398000 | D11: 913005546 | E11: 1739885741 | F11: 227597283741 | H11: 227597283741 | I11: 15244633936 | J11: 167006672541 | K11: 0.7337814837 | L11: 15247991275 | M11: 166830428046 | N11: 0.7330071137
A12: 331010101000000 | B12: SUELDOS PERSONAL DE NOMINA | C12: 126490927000 | E12: 145583526 | F12: 126636510526 | H12: 126636510526 | I12: 9778589777 | J12: 99697825524 | K12: 0.7872755267 | L12: 9778258531 | M12: 99671597140 | N12: 0.7870684112
A13: 331010102000000 | B13: GASTOS DE REPRESENTACION | C13: 75042000 | F13: 75042000 | H13: 75042000 | I13: 202400 | J13: 202400 | K13: 0.002697156259 | L13: 202400 | M13: 202400 | N13: 0.002697156259
A14: 331010103000000 | B14: HORAS EXTRAS, DOMINICALES, FESTIVOS, RECARGO NOCTURNO | C14: 16278640000 | D14: 913005546 | E14: 1420806862 | F14: 17699446862 | H14: 17699446862 | I14: 1494588155 | J14: 15381264061 | K14: 0.8690251272 | L14: 1494588155 | M14: 15381264061 | N14: 0.8690251272
A15: 331010104000000 | B15: SUBSIDIO DE TRANSPORTE | C15: 1968514000 | F15: 1968514000 | H15: 1968514000 | I15: 101041125 | J15: 1051048353 | K15: 0.5339298339 | L15: 101041125 | M15: 1050419172 | N15: 0.5336102116
A16: 331010105000000 | B16: SUBSIDIO DE ALIMENTACION | C16: 9532780000 | F16: 9532780000 | H16: 9532780000 | I16: 688209126 | J16: 7393592549 | K16: 0.7755966831 | L16: 688209126 | M16: 7391246465 | N16: 0.7753505761
A17: 331010106000000 | B17: BONIFICACION POR SERVICIOS PRESTADOS | C17: 437010000 | F17: 437010000 | H17: 437010000 | I17: 27995760 | J17: 190730918 | K17: 0.4364452026 | L17: 27995760 | M17: 190730918 | N17: 0.4364452026
A18: 331010107000000 | B18: PRIMA SEMESTRAL | C18: 15809419000 | E18: 46745094 | F18: 15856164094 | H18: 15856164094 | I18: 2285689 | J18: 15489070165 | K18: 0.9768485034 | L18: 2285689 | M18: 15485277348 | N18: 0.976609302
A19: 331010109000000 | B19: PRIMA DE NAVIDAD | C19: 16154480000 | E19: 23524325 | F19: 16178004325 | H19: 16178004325 | I19: 30893266 | J19: 212574279 | K19: 0.01313970962 | L19: 30893266 | M19: 212574279 | N19: 0.01313970962
A20: 331010110000000 | B20: PRIMA DE VACACIONES | C20: 17654651000 | E20: 15176975 | F20: 17669827975 | H20: 17669827975 | I20: 381519182 | J20: 11277694892 | K20: 0.6382458792 | L20: 381519182 | M20: 11272074292 | N20: 0.637927789
A21: 331010111000000 | B21: PRIMA TECNICA | C21: 4209393000 | E21: 68048959 | F21: 4277441959 | H21: 4277441959 | I21: 319147960 | J21: 3273524113 | K21: 0.7652994814 | L21: 319147960 | M21: 3273524113 | N21: 0.7652994814
A22: 331010112000000 | B22: OTRAS PRIMAS Y BONIFICACIONES | C22: 10407642000 | E22: 20000000 | F22: 10427642000 | H22: 10427642000 | I22: 1517559926 | J22: 7769411656 | K22: 0.7450784804 | L22: 1521248511 | M22: 7631784227 | N22: 0.7318801534
A23: 331010114000000 | B23: QUINQUENIO | C23: 6155108000 | F23: 6155108000 | H23: 6155108000 | I23: 881277583 | J23: 4795637221 | K23: 0.7791312875 | L23: 881277583 | M23: 4795637221 | N23: 0.7791312875
A24: 331010115000000 | B24: INDEMNIZACIONES LABORALES | C24: 100000000 | F24: 100000000 | H24: 100000000
A25: 331010116000000 | B25: CONVENCIONES COLECTIVAS O CONVENIOS | C25: 583792000 | F25: 583792000 | H25: 583792000 | I25: 21323987 | J25: 474096410 | K25: 0.8120981617 | L25: 21323987 | M25: 474096410 | N25: 0.8120981617
A26: 331010200000000 | B26: SERVICIOS PERSONALES INDIRECTOS | C26: 67383543000 | D26: -3186556585 | E26: -3594336633 | F26: 63789206367 | H26: 63789206367 | I26: 1117726787 | J26: 53473124008 | K26: 0.8382785592 | L26: 4208309654 | M26: 31315750518 | N26: 0.490925539
A27: 331010203000000 | B27: HONORARIOS EMPRESA | C27: 54909345000 | D27: -281196481 | E27: 3332539222 | F27: 58241884222 | H27: 58241884222 | I27: 814747375 | J27: 49510857596 | K27: 0.8500902445 | L27: 3819194982 | M27: 27865772178 | N27: 0.4784490157
A28: 331010204000000 | B28: REMUNERACION SERVICIOS TECNICOS | C28: 1568517000 | D28: -63592785 | E28: -438592785 | F28: 1129924215 | H28: 1129924215 | J28: 1024764265 | K28: 0.9069318556 | L28: 86466506 | M28: 515101297 | N28: 0.4558724295
A29: 331010299000000 | B29: OTROS GASTOS DE PERSONAL | C29: 10905681000 | D29: -2841767319 | E29: -6488283070 | F29: 4417397930 | H29: 4417397930 | I29: 302979412 | J29: 2937502147 | K29: 0.6649847248 | L29: 302648166 | M29: 2934877043 | N29: 0.6643904601
A30: 331010300000000 | B30: APORTES PATRONALES AL SECTOR PRIVADO Y PUBLICO | C30: 65548458000 | E30: 3118714435 | F30: 68667172435 | H30: 68667172435 | I30: 4418666459 | J30: 53557573530 | K30: 0.7799589182 | L30: 4485320423 | M30: 49379254835 | N30: 0.719110065
A31: 331010301000000 | B31: APORTES PATRONALES AL SECTOR PRIVADO | C31: 58397668000 | E31: -11650378433 | F31: 46747289567 | H31: 46747289567 | I31: 3008942423 | J31: 36789891524 | K31: 0.7869951791 | L31: 3069601061 | M31: 33906040175 | N31: 0.7253049426
A32: 331010301010000 | B32: CESANTIAS FONDOS PRIVADOS | C32: 7625219000 | E32: -2380000000 | F32: 5245219000 | H32: 5245219000 | J32: 5082890907 | K32: 0.9690521801 | M32: 5082890907 | N32: 0.9690521801
A33: 331010301020000 | B33: PENSIONES FONDOS PRIVADOS | C33: 21171531000 | E33: -11478186868 | F33: 9693344132 | H33: 9693344132 | I33: 608340537 | J33: 6438783381 | K33: 0.6642478894 | L33: 621855359 | M33: 5826446846 | N33: 0.6010770655
A34: 331010301030000 | B34: SALUD EPS PRIVADAS | C34: 20828865000 | E34: 2207808435 | F34: 23036673435 | H34: 23036673435 | I34: 1866195645 | J34: 19124923283 | K34: 0.8301946606 | L34: 1890418961 | M34: 17378911469 | N34: 0.7544019547
A35: 331010301050000 | B35: CAJA DE COMPENSACION | C35: 8772053000 | F35: 8772053000 | H35: 8772053000 | I35: 534406241 | J35: 6143293953 | K35: 0.7003256767 | L35: 557326741 | M35: 5617790953 | N35: 0.6404191759
A36: 331010302000000 | B36: APORTES PATRONALES AL SECTOR PUBLICO | C36: 7150790000 | E36: 14769092868 | F36: 21919882868 | H36: 21919882868 | I36: 1409724036 | J36: 16767682006 | K36: 0.7649530842 | L36: 1415719362 | M36: 15473214660 | N36: 0.7058986014
A37: 331010302010000 | B37: CESANTIAS FONDOS PÚBLICOS | E37: 2380000000 | F37: 2380000000 | H37: 2380000000 | J37: 2285717049 | K37: 0.9603853147 | M37: 2285717049 | N37: 0.9603853147
A38: 331010302020000 | B38: PENSIONES FONDOS PÚBLICOS | E38: 11578186868 | F38: 11578186868 | H38: 11578186868 | I38: 1042181280 | J38: 9771977134 | K38: 0.8439989133 | L38: 1019208935 | M38: 8853419227 | N38: 0.7646637015
A39: 331010302030000 | B39: SALUD EPS PUBLICOS | E39: 600000000 | F39: 600000000 | H39: 600000000 | I39: 21173178 | J39: 238914345 | K39: 0.398190575 | L39: 22079549 | M39: 217343906 | N39: 0.3622398433
A40: 331010302040000 | B40: RIESGOS PROFESIONALES SECTOR PUBLICO | C40: 2124180000 | E40: 210906000 | F40: 2335086000 | H40: 2335086000 | I40: 208658400 | J40: 1969865000 | K40: 0.8435941974 | L40: 207179100 | M40: 1759736100 | N40: 0.7536065481
A41: 331010302050000 | B41: ICBF | C41: 3036439000 | F41: 3036439000 | H41: 3036439000 | I41: 82606587 | J41: 1500895387 | K41: 0.4942945954 | L41: 100348287 | M41: 1414155187 | N41: 0.4657281727
A42: 331010302060000 | B42: SENA | C42: 1990171000 | F42: 1990171000 | H42: 1990171000 | I42: 55104591 | J42: 1000313091 | K42: 0.5026267044 | L42: 66903491 | M42: 942843191 | N42: 0.4737498391
A43: 331020000000000 | B43: GASTOS GENERALES | C43: 500514708000 | D43: 3340932455 | E43: 14239616862 | F43: 514754324862 | H43: 514754324862 | I43: 28394066444 | J43: 414306584792 | K43: 0.8048627564 | L43: 16304579660 | M43: 305555058892 | N43: 0.5935939615
A44: 331020100000000 | B44: ADQUISICION DE BIENES | C44: 48492183000 | D44: 14667227772 | E44: 17356159334 | F44: 65848342334 | H44: 65848342334 | I44: 4916227701 | J44: 33626420601 | K44: 0.5106646486 | L44: 874336499 | M44: 16229538490 | N44: 0.2464684442
A45: 331020101000000 | B45: DOTACION | C45: 3286323000 | D45: -19357437 | E45: 455175977 | F45: 3741498977 | H45: 3741498977 | I45: 9139200 | J45: 1965253258 | K45: 0.5252582642 | L45: 152007595 | M45: 720592996 | N45: 0.1925947329
A46: 331020102000000 | B46: MATERIALES Y SUMINISTROS | C46: 11871646000 | D46: -560234643 | E46: 923113837 | F46: 12794759837 | H46: 12794759837 | I46: 1299339720 | J46: 8786164303 | K46: 0.6867002128 | L46: 430648227 | M46: 2708430620 | N46: 0.2116828025
A47: 331020103000000 | B47: GASTOS DE COMPUTADOR | C47: 29306737000 | D47: 15449767120 | E47: 16343072385 | F47: 45649809385 | H47: 45649809385 | I47: 3607698781 | J47: 19265251337 | K47: 0.422022602 | M47: 11286179934 | N47: 0.2472338896
A48: 331020104000000 | B48: COMBUSTIBLES, LUBRICANTES Y LLANTAS | C48: 4027477000 | D48: -202947268 | E48: -365202865 | F48: 3662274135 | H48: 3662274135 | I48: 50000 | J48: 3609751703 | K48: 0.9856585198 | L48: 291680677 | M48: 1514334940 | N48: 0.4134957909
A49: 331020200000000 | B49: ADQUISICION DE SERVICIOS | C49: 168488698000 | D49: 6347195669 | E49: 1173904825 | F49: 169662602825 | H49: 169662602825 | I49: 16126043305 | J49: 139876924553 | K49: 0.8244416991 | L49: 7030031728 | M49: 58293423766 | N49: 0.343584401
A50: 331020201000000 | B50: VIATICOS Y GASTOS DE VIAJE | C50: 1178098000 | F50: 1178098000 | H50: 1178098000 | I50: 28634105 | J50: 475703623 | K50: 0.4037895175 | L50: 38206688 | M50: 419308898 | N50: 0.3559202189
A51: 331020202000000 | B51: GASTOS DE TRANSPORTE Y COMUNICACIÓN | C51: 15506533000 | D51: 421342219 | E51: 232050883 | F51: 15738583883 | H51: 15738583883 | I51: 192959904 | J51: 13699781041 | K51: 0.8704583044 | L51: 1176625677 | M51: 7791163410 | N51: 0.4950358601
A52: 331020203000000 | B52: IMPRESOS Y PUBLICACIONES | C52: 824609000 | D52: -52341000 | E52: -136646580 | F52: 687962420 | H52: 687962420 | I52: -74977136 | J52: 139448847 | K52: 0.2026983494 | L52: 29062744 | M52: 113477487 | N52: 0.1649472176
A53: 331020204000000 | B53: MANTENIMIENTO Y REPARACIONES | C53: 82189005000 | D53: -164912551 | E53: -4670575396 | F53: 77518429604 | H53: 77518429604 | I53: 20284077 | J53: 58299819378 | K53: 0.752076889 | L53: 3926371817 | M53: 25402793479 | N53: 0.3277000529
A54: 331020205000000 | B54: ARRENDAMIENTOS | C54: 12050191000 | D54: 77316944 | E54: 157316944 | F54: 12207507944 | H54: 12207507944 | I54: 499046367 | J54: 11040753525 | K54: 0.9044232103 | L54: 295094775 | M54: 3928336911 | N54: 0.3217967933
A55: 331020206000000 | B55: SEGUROS | C55: 29125848000 | D55: 6535537245 | E55: 6535537245 | F55: 35661385245 | H55: 35661385245 | I55: 15312565472 | J55: 35118934916 | K55: 0.9847888598 | M55: 13291245641 | N55: 0.3727069364
A56: 331020207000000 | B56: SUMINISTRO DE ALIMENTOS | C56: 4903521000 | D56: -460676951 | E56: -1369894241 | F56: 3533626759 | H56: 3533626759 | J56: 3323353107 | K56: 0.9404935308 | L56: 286359747 | M56: 1150201647 | N56: 0.3255017367
A57: 331020208000000 | B57: SERVICIOS PUBLICOS | C57: 5865650000 | F57: 5865650000 | H57: 5865650000 | I57: 99059517 | J57: 5386421101 | K57: 0.9182990975 | L57: 482174599 | M57: 3541383076 | N57: 0.6037494695
A58: 331020209000000 | B58: CAPACITACION | C58: 900000000 | D58: 79312400 | E58: 71387432 | F58: 971387432 | H58: 971387432 | I58: 22077999 | J58: 725690671 | K58: 0.7470661521 | L58: 136279599 | M58: 334963705 | N58: 0.344830182
A59: 331020210000000 | B59: BIENESTAR E INCENTIVOS | C59: 4693616000 | E59: 153722082 | F59: 4847338082 | H59: 4847338082 | J59: 3999963004 | K59: 0.8251875434 | L59: 41512664 | M59: 55964349 | N59: 0.0115453777
A60: 331020211000000 | B60: PROMOCION INSTITUCIONAL | C60: 6731186000 | E60: 194853750 | F60: 6926039750 | H60: 6926039750 | I60: 26393000 | J60: 3660209020 | K60: 0.5284706921 | L60: 493021467 | M60: 1559603892 | N60: 0.2251797489
A61: 331020212000000 | B61: INTERESES Y COMISIONES | C61: 3011310000 | F61: 3011310000 | H61: 3011310000 | J61: 2723789171 | K61: 0.9045196845 | L61: 39230776 | M61: 155929481 | N61: 0.05178127825
A62: 331020213000000 | B62: SALUD OCUPACIONAL | C62: 1367131000 | D62: -88382637 | E62: 6152706 | F62: 1373283706 | H62: 1373283706 | J62: 1141455149 | K62: 0.831186698 | L62: 86091175 | M62: 407449790 | N62: 0.2966974619
A63: 331020214000000 | B63: PROGRAMAS Y CONVENIOS INSTITUCIONES | C63: 142000000 | F63: 142000000 | H63: 142000000 | J63: 141602000 | K63: 0.9971971831 | M63: 141602000 | N63: 0.9971971831
A64: 331020300000000 | B64: OTROS GASTOS GENERALES | C64: 283533827000 | D64: -17673490986 | E64: -4290447297 | F64: 279243379703 | H64: 279243379703 | I64: 7351795438 | J64: 240803239638 | K64: 0.8623418034 | L64: 8400211433 | M64: 231032096636 | N64: 0.8273503095
A65: 331020301000000 | B65: IMPUESTOS, TASAS Y MULTAS | C65: 266871794000 | D65: -11260463477 | E65: -3939336856 | F65: 262932457144 | H65: 262932457144 | I65: 7023994693 | J65: 232013119601 | K65: 0.8824057787 | L65: 7699960976 | M65: 225096405932 | N65: 0.8560997314
A66: 331020302000000 | B66: SENTENCIAS JUDICIALES | C66: 750000000 | F66: 750000000 | H66: 750000000 | I66: 296787893 | J66: 314844447 | K66: 0.419792596 | L66: 296787893 | M66: 314844447 | N66: 0.419792596
A67: 331020399000000 | B67: OTROS GASTOS GENERALES | C67: 15912033000 | D67: -6413027509 | E67: -351110441 | F67: 15560922559 | H67: 15560922559 | I67: 31012852 | J67: 8475275590 | K67: 0.5446512286 | L67: 403462564 | M67: 5620846257 | N67: 0.3612154894
A68: 331030000000000 | B68: TRANSFERENCIAS CORRIENTES | C68: 312085533000 | D68: -194001993 | E68: 4384425902 | F68: 316469958902 | H68: 316469958902 | I68: 14497460159 | J68: 248059087503 | K68: 0.7838313891 | L68: 20740257849 | M68: 197318743905 | N68: 0.6234991296
A69: 331030300000000 | B69: TRANSFERENCIAS DE PREVISION Y SEGURIDAD SOCIAL | C69: 311435532000 | D69: -194001993 | E69: 4154075305 | F69: 315589607305 | H69: 315589607305 | I69: 14489888926 | J69: 247878154304 | K69: 0.7854446045 | L69: 20732686616 | M69: 197137810706 | N69: 0.6246650908
A70: 331030301000000 | B70: PENSIONES Y JUBILACIONES | C70: 199914405000 | E70: -299078879 | F70: 199615326121 | H70: 199615326121 | I70: 13730254493 | J70: 147444674959 | K70: 0.7386440602 | L70: 14034204117 | M70: 147235479833 | N70: 0.7375960689
A71: 331030302000000 | B71: CESANTIAS | C71: 17646342000 | F71: 17646342000 | H71: 17646342000 | I71: 675874179 | J71: 8905696087 | K71: 0.5046766116 | L71: 675874179 | M71: 8883413999 | N71: 0.5034139086
A72: 331030303000000 | B72: OTRAS TRANSFERENCIAS DE PREVISION SOCIAL | C72: 93874785000 | D72: -194001993 | E72: 4453154184 | F72: 98327939184 | H72: 98327939184 | I72: 83760254 | J72: 91527783258 | K72: 0.9308420782 | L72: 6022608320 | M72: 41018916874 | N72: 0.4171644114
A73: 331030303010000 | B73: FONDO DE VIVIENDA | C73: 29566811000 | D73: -186753993 | E73: 4460402184 | F73: 34027213184 | H73: 34027213184 | I73: -984746 | J73: 27611937704 | K73: 0.8114663271 | L73: 1541596218 | M73: 16854989678 | N73: 0.4953385276
A74: 331030303020000 | B74: PAGOS SERVICIOS MEDICOS CONVENCIONALES | C74: 64307974000 | D74: -7248000 | E74: -7248000 | F74: 64300726000 | H74: 64300726000 | I74: 84745000 | J74: 63915845554 | K74: 0.9940143686 | L74: 4481012102 | M74: 24163927196 | N74: 0.3757955578
A75: 331030400000000 | B75: OTRAS TRANSFERENCIAS | C75: 650001000 | E75: 230350597 | F75: 880351597 | H75: 880351597 | I75: 7571233 | J75: 180933199 | K75: 0.2055237926 | L75: 7571233 | M75: 180933199 | N75: 0.2055237926
A76: 331030401000000 | B76: DESTINATARIOS DE OTRAS TRANSFERENCIAS | C76: 650001000 | E76: 230350597 | F76: 880351597 | H76: 880351597 | I76: 7571233 | J76: 180933199 | K76: 0.2055237926 | L76: 7571233 | M76: 180933199 | N76: 0.2055237926
A77: 331040000000000 | B77: CUENTAS POR PAGAR FUNCIONAMIENTO | C77: 120174003000 | D77: -873379423 | E77: 47204255475 | F77: 167378258475 | H77: 167378258475 | I77: -215489821 | J77: 165305288151 | K77: 0.9876150562 | L77: 3134106916 | M77: 136848512794 | N77: 0.8176002907
A78: 331040000000000 | B78: CUENTAS POR PAGAR | C78: 120174003000 | D78: -873379423 | E78: 47204255475 | F78: 167378258475 | H78: 167378258475 | I78: -215489821 | J78: 165305288151 | K78: 0.9876150562 | L78: 3134106916 | M78: 136848512794 | N78: 0.8176002907
A79: 332000000000000 | B79: GASTOS DE OPERACION | C79: 317492682000 | E79: 23763704174 | F79: 341256386174 | H79: 341256386174 | I79: 7760808542 | J79: 270806506320 | K79: 0.793557329 | L79: 21272771789 | M79: 153312672119 | N79: 0.4492594962
A80: 332010000000000 | B80: GASTOS DE COMERCIALIZACION | C80: 122590042000 | E80: 14411627570 | F80: 137001669570 | H80: 137001669570 | I80: 6449794881 | J80: 78804317951 | K80: 0.5752069898 | L80: 7491566412 | M80: 22891750431 | N80: 0.1670910326
A81: 332010100000000 | B81: COMPRA DE BIENES PARA LA VENTA | C81: 4000000000 | F81: 4000000000 | H81: 4000000000 | J81: 3999999580 | K81: 0.999999895
A82: 332010101000000 | B82: MEDIDORES | C82: 4000000000 | F82: 4000000000 | H82: 4000000000 | J82: 3999999580 | K82: 0.999999895
A83: 332010200000000 | B83: COMPRA DE SERVICIOS PARA LA VENTA | C83: 10638855000 | D83: -81203370 | E83: 269351023 | F83: 10908206023 | H83: 10908206023 | J83: 10780115129 | K83: 0.9882573822 | L83: 1634338010 | M83: 2333827413 | N83: 0.2139515341
A84: 332010201000000 | B84: GESTION COMERCIAL | C84: 10638855000 | D84: -81203370 | E84: -358875681 | F84: 10279979319 | H84: 10279979319 | J84: 10151888425 | K84: 0.9875397712 | L84: 1634338010 | M84: 2015983037 | N84: 0.1961076938
A85: 332010204000000 | B85: PROCESO DE ASEO | E85: 628226704 | F85: 628226704 | H85: 628226704 | J85: 628226704 | K85: 1 | M85: 317844376 | N85: 0.5059389771
A86: 332010500000000 | B86: OTROS GASTOS DE COMERCIALIZACION | C86: 107951187000 | D86: 81203370 | E86: 14142276547 | F86: 122093463547 | H86: 122093463547 | I86: 6449794881 | J86: 64024203242 | K86: 0.5243868212 | L86: 5857228402 | M86: 20557923018 | N86: 0.1683785718
A87: 332010501000000 | B87: MANTENIMIENTO Y MATERIALES OPERACION INFRAESTRUCTURA | C87: 102301187000 | D87: -311455364 | E87: 754418918 | F87: 103055605918 | H87: 103055605918 | I87: 6449794881 | J87: 63874203242 | K87: 0.6198032865 | L87: 5857228402 | M87: 20542872682 | N87: 0.1993377507
A88: 332010502000000 | B88: COMERCIALIZACION DE ENERGIA | C88: 150000000 | F88: 150000000 | H88: 150000000 | J88: 150000000 | K88: 1 | M88: 15050336 | N88: 0.1003355733
A89: 332010503000000 | B89: FONDO ATENCION EMERGENCIAS | C89: 4000000000 | D89: 392658734 | E89: 13387857629 | F89: 17387857629 | H89: 17387857629
A90: 332010504000000 | B90: FONDO OBLIGACIONES CONTIGENTES | C90: 1500000000 | F90: 1500000000 | H90: 1500000000
A91: 332020000000000 | B91: GASTOS DE PRODUCCION | C91: 119951222000 | E91: -12887505319 | F91: 107063716681 | H91: 107063716681 | I91: 1311100165 | J91: 101516239888 | K91: 0.9481852773 | L91: 9616017599 | M91: 70134411345 | N91: 0.6550717042
A92: 332020100000000 | B92: INDUSTRIAL | C92: 119951222000 | E92: -12887505319 | F92: 107063716681 | H92: 107063716681 | I92: 1311100165 | J92: 101516239888 | K92: 0.9481852773 | L92: 9616017599 | M92: 70134411345 | N92: 0.6550717042
A93: 332020101000000 | B93: COMPRA AGUA EN BLOQUE | C93: 19933196000 | E93: -19889848731 | F93: 43347269 | H93: 43347269 | J93: 6835026 | K93: 0.1576806603 | M93: 6835026 | N93: 0.1576806603
A94: 332020102000000 | B94: ENERGIA PARA BOMBEO | C94: 59707405000 | E94: 800000000 | F94: 60507405000 | H94: 60507405000 | J94: 60507405000 | K94: 1 | L94: 6704642646 | M94: 46562448461 | N94: 0.769533059
A95: 332020103000000 | B95: TASA POR USO DE AGUA | C95: 6740115000 | E95: 2165757812 | F95: 8905872812 | H95: 8905872812 | I95: 1164444565 | J95: 7025847843 | K95: 0.7889005369 | M95: 5860651383 | N95: 0.6580659197
A96: 332020109000000 | B96: PRODUCTOS QUIMICOS | C96: 33570506000 | E96: 4036585600 | F96: 37607091600 | H96: 37607091600 | I96: 146655600 | J96: 33976152019 | K96: 0.9034506678 | L96: 2911374953 | M96: 17704476475 | N96: 0.4707749449
A97: 332030000000000 | B97: CUENTAS POR PAGAR | C97: 74951418000 | E97: 22239581923 | F97: 97190999923 | H97: 97190999923 | I97: -86504 | J97: 90485948481 | K97: 0.9310116014 | L97: 4165187778 | M97: 60286510343 | N97: 0.6202890226
A98: 332030000000000 | B98: CUENTAS POR PAGAR | C98: 74951418000 | E98: 22239581923 | F98: 97190999923 | H98: 97190999923 | I98: -86504 | J98: 90485948481 | K98: 0.9310116014 | L98: 4165187778 | M98: 60286510343 | N98: 0.6202890226
A99: 333000000000000 | B99: SERVICIO DE LA DEUDA | C99: 153572347000 | E99: 303368570 | F99: 153875715570 | H99: 153875715570 | I99: 85989000 | J99: 132555832595 | K99: 0.8614473837 | L99: 85989000 | M99: 132555832595 | N99: 0.8614473837
A100: 333010000000000 | B100: DEUDA INTERNA | C100: 133333821000 | E100: -4300000000 | F100: 129033821000 | H100: 129033821000 | J100: 126137407166 | K100: 0.9775530647 | M100: 126137407166 | N100: 0.9775530647
A101: 333010100000000 | B101: AMORTIZACION | C101: 77404000000 | E101: 37028000000 | F101: 114432000000 | H101: 114432000000 | J101: 114430888888 | K101: 0.9999902902 | M101: 114430888888 | N101: 0.9999902902
A102: 333010200000000 | B102: INTERESES | C102: 55330821000 | E102: -41328000000 | F102: 14002821000 | H102: 14002821000 | J102: 11706518278 | K102: 0.8360114207 | M102: 11706518278 | N102: 0.8360114207
A103: 333010300000000 | B103: COMISIONES Y OTROS | C103: 599000000 | F103: 599000000 | H103: 599000000
A104: 333030000000000 | B104: BONOS PENSIONALES | C104: 3427370000 | E104: 4300000000 | F104: 7727370000 | H104: 7727370000 | I104: 85989000 | J104: 6418425429 | K104: 0.8306093055 | L104: 85989000 | M104: 6418425429 | N104: 0.8306093055
A105: 333030000000000 | B105: BONOS PENSIONALES | C105: 3427370000 | E105: 4300000000 | F105: 7727370000 | H105: 7727370000 | I105: 85989000 | J105: 6418425429 | K105: 0.8306093055 | L105: 85989000 | M105: 6418425429 | N105: 0.8306093055
A106: 333040000000000 | B106: CUENTAS POR PAGAR | E106: 2370570 | F106: 2370570 | H106: 2370570
A107: 333040000000000 | B107: CUENTAS POR PAGAR | E107: 2370570 | F107: 2370570 | H107: 2370570
A108: 333050000000000 | B108: PASIVOS CONTINGENTES | C108: 16811156000 | E108: 300998000 | F108: 17112154000 | H108: 17112154000
A109: 333050000000000 | B109: PASIVOS CONTINGENTES | C109: 16811156000 | E109: 300998000 | F109: 17112154000 | H109: 17112154000
A110: 334000000000000 | B110: INVERSION | C110: 3417897390000 | E110: 27815292738 | F110: 3445712682738 | H110: 3445712682738 | I110: 19220938499 | J110: 1421538869896 | K110: 0.4125529319 | L110: 39283283467 | M110: 413695969216 | N110: 0.1200610751
A111: 334010000000000 | B111: DIRECTA | C111: 1783511313000 | D111: 2381737170 | E111: 23346792258 | F111: 1806858105258 | H111: 1806858105258 | I111: 19350605567 | J111: 630339766542 | K111: 0.3488595838 | L111: 12558622973 | M111: 60312539281 | N111: 0.03337978733
A112: 334011500000000 | B112: BOGOTA MEJOR PARA TODOS | C112: 1783511313000 | D112: 2381737170 | E112: 23346792258 | F112: 1806858105258 | H112: 1806858105258 | I112: 19350605567 | J112: 630339766542 | K112: 0.3488595838 | L112: 12558622973 | M112: 60312539281 | N112: 0.03337978733
A113: 334011502000000 | B113: PILAR DEMOCRACIA URBANA | C113: 1590353907000 | D113: -70570733 | E113: -3881498882 | F113: 1586472408118 | H113: 1586472408118 | I113: 4921175126 | J113: 554529978506 | K113: 0.3495364783 | L113: 9537208002 | M113: 50373092535 | N113: 0.03175163481
A114: 334011502130000 | B114: INFRAESTRUCTURA PARA EL DESARROLLO DEL HABITAT | C114: 1590353907000 | D114: -70570733 | E114: -3881498882 | F114: 1586472408118 | H114: 1586472408118 | I114: 4921175126 | J114: 554529978506 | K114: 0.3495364783 | L114: 9537208002 | M114: 50373092535 | N114: 0.03175163481
A115: 334011502130133 | B115: INFRAESTRUCTURA PARA EL DESARROLLO DEL HABITAT | C115: 1590353907000 | D115: -70570733 | E115: -3881498882 | F115: 1586472408118 | H115: 1586472408118 | I115: 4921175126 | J115: 554529978506 | K115: 0.3495364783 | L115: 9537208002 | M115: 50373092535 | N115: 0.03175163481
A116: 334011502130133000019 | B116: 0019 - CONSTRUCCIÓN DE REDES LOCALES PARA EL SERVICIO DE ALC | C116: 46423998000 | D116: -216671042 | E116: 4508231087 | F116: 50932229087 | H116: 50932229087 | I116: 65220776 | J116: 9582035472 | K116: 0.1881330475 | L116: 783447257 | M116: 1369119690 | N116: 0.02688120498
A117: 334011502130133000020 | B117: 0020 - CONSTRUCCIÓN DE REDES LOCALES PARA EL SERVICIO DE ALC | C117: 67831563000 | E117: -10172098246 | F117: 57659464754 | H117: 57659464754 | I117: -2795222 | J117: 5313417185 | K117: 0.0921516911 | M117: 392428739 | N117: 0.00680597263
A118: 334011502130133000021 | B118: 0021 - CONSTRUCCIÓN DEL SISTEMA TRONCAL Y SECUNDARIO DE ALCA | C118: 15776019000 | D118: 27750275 | E118: 2811764363 | F118: 18587783363 | H118: 18587783363 | J118: 10535462707 | K118: 0.5667950019 | M118: 1036392641 | N118: 0.0557566559
A119: 334011502130133000022 | B119: 0022 - CONSTRUCCIÓN DEL SISTEMA TRONCAL Y SECUNDARIO DE ALCA | C119: 16877024000 | D119: 1679557035 | E119: 41756137890 | F119: 58633161890 | H119: 58633161890 | I119: 1555214557 | J119: 48779547495 | K119: 0.8319446866 | L119: 1109648524 | M119: 12213158309 | N119: 0.2082977945
A120: 334011502130133000050 | B120: 0050 - RENOVACIÓN, REHABILITACIÓN O REPOSICIÓN DE LOS SISTEM | C120: 361732708000 | D120: -1727837526 | E120: -52978572598 | F120: 308754135402 | H120: 308754135402 | I120: 2147450565 | J120: 33737092400 | K120: 0.1092684714 | L120: 292425060 | M120: 4624176724 | N120: 0.01497689
A121: 334011502130133000051 | B121: 0051 - RENOVACIÓN, REHABILITACIÓN O REPOSICIÓN DEL SISTEMA T | C121: 150553278000 | D121: 3409300754 | E121: -12042370949 | F121: 138510907051 | H121: 138510907051 | I121: 382775886 | J121: 92275054388 | K121: 0.6661934165 | L121: 665076619 | M121: 4751616384 | N121: 0.03430499796
A122: 334011502130133000052 | B122: 0052 - RENOVACIÓN, REHABILITACIÓN O REPOSICIÓN DEL SISTEMA T | C122: 97926991000 | D122: 819056851 | E122: 2867106089 | F122: 100794097089 | H122: 100794097089 | I122: -107160811 | J122: 62854145417 | K122: 0.6235895477 | L122: 1769827353 | M122: 5636050576 | N122: 0.05591647466
A123: 334011502130133000053 | B123: 0053 - RENOVACIÓN, REHABILITACIÓN O REPOSICIÓN DEL SISTEMA T | C123: 28895578000 | E123: 967288366 | F123: 29862866366 | H123: 29862866366 | J123: 15763742149 | K123: 0.5278710341 | L123: 1436307705 | M123: 4513189563 | N123: 0.1511304879
A124: 334011502130133000054 | B124: 0054 - ACCIONES PARA EL SANEAMIENTO DEL RÍO BOGOTÁ | C124: 85540318000 | E124: 8024474911 | F124: 93564792911 | H124: 93564792911 | J124: 82091036505 | K124: 0.8773710062 | L124: 697738637 | M124: 786471604 | N124: 0.008405636132
A125: 334011502130133000068 | B125: 0068 - CONSTRUCCIÓN, RENOVACIÓN, REHABILITACIÓN O REPOSICIÓN | C125: 75000000000 | E125: 23220723538 | F125: 98220723538 | H125: 98220723538 | J125: 737302000 | K125: 0.007506582862 | L125: 80169000 | M125: 296851636 | N125: 0.003022291277
A126: 334011502130133000081 | B126: 0081 - CORREDORES AMBIENTALES | C126: 354634309000 | D126: -5774707069 | E126: 10663652782 | F126: 365297961782 | H126: 365297961782 | I126: 79015587 | J126: 85512929264 | K126: 0.2340909017 | L126: 215241606 | M126: 7291031638 | N126: 0.01995913583
A127: 334011502130133007334 | B127: 7334 - CONSTRUCCIÓN Y EXPANSIÓN DEL SISTEMA DE ABASTECIMIENT | C127: 249020376000 | D127: 1712979989 | E127: -6669884066 | F127: 242350491934 | H127: 242350491934 | I127: 331403788 | J127: 102085482360 | K127: 0.4212307619 | L127: 2024363804 | M127: 5998103616 | N127: 0.02474970679
A128: 334011502130133007338 | B128: 7338 - CONSTRUCCIÓN DE REDES LOCALES PARA EL SERVICIO DE ACU | C128: 40141745000 | E128: -16837952049 | F128: 23303792951 | H128: 23303792951 | I128: 470050000 | J128: 5262731164 | K128: 0.2258315277 | L128: 462962437 | M128: 1464501415 | N128: 0.06284390777
A129: 334011506000000 | B129: EJE TRANSV. SOSTENIB. AMBIENTAL BASADA EFICIENCIA ENERGETICA | C129: 94382111000 | D129: 2452307903 | E129: 32953252905 | F129: 127335363905 | H129: 127335363905 | I129: 4507207536 | J129: 55403279402 | K129: 0.43509735 | L129: 2317786991 | M129: 8969506573 | N129: 0.0704400278
A130: 334011506380000 | B130: RECUPERACION Y MANEJO ESTRUCTURA ECOLOGICA PRINCIPAL | C130: 8151000000 | D130: 2452307903 | E130: 29052872848 | F130: 37203872848 | H130: 37203872848 | I130: 4507207536 | J130: 14500383522 | K130: 0.3897546791 | L130: 1964216948 | M130: 6791691322 | N130: 0.182553342
A131: 334011506380177 | B131: CONSOLIDACION DE LA ESTRUCTURA ECOLOGICA PRINCIPAL | C131: 8151000000 | D131: 2452307903 | E131: 29052872848 | F131: 37203872848 | H131: 37203872848 | I131: 4507207536 | J131: 14500383522 | K131: 0.3897546791 | L131: 1964216948 | M131: 6791691322 | N131: 0.182553342
A132: 334011506380177007341 | B132: 7341 - ADEC.HIDRAULICA RECUP.AMB.HUMED,QUEBRADAS,RIOS CUENCA | C132: 8151000000 | D132: 2452307903 | E132: 29052872848 | F132: 37203872848 | H132: 37203872848 | I132: 4507207536 | J132: 14500383522 | K132: 0.3897546791 | L132: 1964216948 | M132: 6791691322 | N132: 0.182553342
A133: 334011506380177007341 | B133: 7341 - ADECUACIÓN HIDRÁULICA Y RECUPERACIÓN AMBIENTAL DE HUM | C133: 8151000000 | D133: 2452307903 | E133: 29052872848 | F133: 37203872848 | H133: 37203872848 | I133: 4507207536 | J133: 14500383522 | K133: 0.3897546791 | L133: 1964216948 | M133: 6791691322 | N133: 0.182553342
A134: 334011506390000 | B134: AMBIENTE SANO PARA LA EQUIDAD Y DISFRUTE DEL CIUDADANO | C134: 86231111000 | E134: 3900380057 | F134: 90131491057 | H134: 90131491057 | J134: 40902895880 | K134: 0.4538135939 | L134: 353570043 | M134: 2177815251 | N134: 0.02416264532
A135: 334011506390179 | B135: AMBIENTE SANO | C135: 86231111000 | E135: 3900380057 | F135: 90131491057 | H135: 90131491057 | J135: 40902895880 | K135: 0.4538135939 | L135: 353570043 | M135: 2177815251 | N135: 0.02416264532
A136: 334011506390179000082 | B136: 0082 - PLAN DE SANEAMIENTO Y MANEJO DE VERTIMIENTOS | C136: 86231111000 | E136: 3900380057 | F136: 90131491057 | H136: 90131491057 | J136: 40902895880 | K136: 0.4538135939 | L136: 353570043 | M136: 2177815251 | N136: 0.02416264532
A137: 334011506390179000082 | B137: 0082 - PLAN DE SANEAMIENTO Y MANEJO DE VERTIMIENTOS | C137: 86231111000 | E137: 3900380057 | F137: 90131491057 | H137: 90131491057 | J137: 40902895880 | K137: 0.4538135939 | L137: 353570043 | M137: 2177815251 | N137: 0.02416264532
A138: 334011507000000 | B138: EJE TRANSVERSAL GOBIERNO LEGITIMO, FORT. LOCAL Y EFICIENTE | C138: 98775295000 | E138: -5724961765 | F138: 93050333235 | H138: 93050333235 | I138: 9922222905 | J138: 20406508634 | K138: 0.2193061317 | L138: 703627980 | M138: 969940173 | N138: 0.01042382267
A139: 334011507420000 | B139: TRANSPARENCIA, GESTION PUBLICA Y SERVICIO A LA CIUDADANIA | C139: 98775295000 | E139: -5724961765 | F139: 93050333235 | H139: 93050333235 | I139: 9922222905 | J139: 20406508634 | K139: 0.2193061317 | L139: 703627980 | M139: 969940173 | N139: 0.01042382267
A140: 334011507420185 | B140: FORTALECIMIENTO A LA GESTION PUBLICA EFECTIVA Y EFICIENTE | C140: 98775295000 | E140: -5724961765 | F140: 93050333235 | H140: 93050333235 | I140: 9922222905 | J140: 20406508634 | K140: 0.2193061317 | L140: 703627980 | M140: 969940173 | N140: 0.01042382267
A141: 334011507420185000055 | B141: 0055 - FORTALECIMIENTO ADMINISTRATIVO Y OPERATIVO EMPRESARIA | C141: 98775295000 | E141: -5724961765 | F141: 93050333235 | H141: 93050333235 | I141: 9922222905 | J141: 20406508634 | K141: 0.2193061317 | L141: 703627980 | M141: 969940173 | N141: 0.01042382267
A142: 334011507420185000055 | B142: 0055 - FORTALECIMIENTO ADMINISTRATIVO Y OPERATIVO EMPRESARIA | C142: 98775295000 | E142: -5724961765 | F142: 93050333235 | H142: 93050333235 | I142: 9922222905 | J142: 20406508634 | K142: 0.2193061317 | L142: 703627980 | M142: 969940173 | N142: 0.01042382267
A143: 334020000000000 | B143: TRANSFERENCIAS PARA INVERSION | C143: 872741045000 | D143: -2383465170 | E143: 8326968955 | F143: 881068013955 | H143: 881068013955 | J143: 35105007046 | K143: 0.03984369707 | M143: 35105007046 | N143: 0.03984369707
A144: 334020200000000 | B144: EMPRESAS DISTRITALES | C144: 872741045000 | D144: -2383465170 | E144: 8326968955 | F144: 881068013955 | H144: 881068013955 | J144: 35105007046 | K144: 0.03984369707 | M144: 35105007046 | N144: 0.03984369707
A145: 334030000000000 | B145: CUENTAS POR PAGAR | C145: 761645032000 | D145: 1728000 | E145: -3858468475 | F145: 757786563525 | H145: 757786563525 | I145: -129667068 | J145: 756094096308 | K145: 0.9977665648 | L145: 26724660494 | M145: 318278422889 | N145: 0.4200106444
A146: 334030000000000 | B146: CUENTAS POR PAGAR | C146: 761645032000 | D146: 1728000 | E146: -3858468475 | F146: 757786563525 | H146: 757786563525 | I146: -129667068 | J146: 756094096308 | K146: 0.9977665648 | L146: 26724660494 | M146: 318278422889 | N146: 0.4200106444
A147: 340000000000000 | B147: DISPONIBILIDAD FINAL | C147: 238551564000 | E147: 187868408437 | F147: 426419972437 | H147: 426419972437
A148: 340000000000000 | B148: DISPONIBILIDAD FINAL | C148: 238551564000 | E148: 187868408437 | F148: 426419972437 | H148: 426419972437
B153: JULIANA CASTRO BUITRAGO | F153: MAURICIO GOMEZ ARANGO
B154: Directora Presupuesto | F154: Gerente Corporativo Financiero

Sheet Graph (hidden)
G1: FEP8Qry3
F2: Dir. SIE - BI Rev 2014.01
F5: Information
F6: Autor | G6: RAGARCIA | I6: Últ.actual.pantalla | J6: 02/07/2014 09:16:31
F7: Usuario actual | G7: AOCAMPOR | I7: Fe.clave | J7: 02/07/2014
F8: Modificado por | G8: RAGARCIA | I8: Hora de modificación | J8: 12/06/2014 15:20:31
F9: InfoSitio | G9: 0PU_C02 | I9: Actualidad de datos | J9: 02/07/2014 00:39:33
F10: Nombre técnico query | G10: ZPU_C02_Q4001 | I10: Actualidad de datos (fecha) | J10: 02/07/2014
F11: Descripción query | G11: EJECUCION PRESUPUESTAL DE GASTOS - SECRETARIA DE HACIENDA | I11: Actualidad de los datos (hora) | J11: 00:39:33
C14: Filter
C15: Cta Entidades PSM | D15: GASTOS, DISPONIBILIDAD FINAL
C16: Ratios

Sheet V_Futuras_2019-2021
A2: EMPRESA DE ACUEDUCTO ALCANTARILLADO DE BOGOTA | M2: EMPRESA DE ACUEDUCTO ALCANTARILLADO DE BOGOTA | Y2: EMPRESA DE ACUEDUCTO ALCANTARILLADO DE BOGOTA | AK2: EMPRESA DE ACUEDUCTO ALCANTARILLADO DE BOGOTA
A3: EJECUCION PRESUPUESTAL DE VIGENCIAS FUTURAS | M3: EJECUCION PRESUPUESTAL DE VIGENCIAS FUTURAS | Y3: EJECUCION PRESUPUESTAL DE VIGENCIAS FUTURAS | AK3: EJECUCION PRESUPUESTAL DE VIGENCIAS FUTURAS
A4: A 31 OCTUBRE DE 2019 | M4: A 31 OCTUBRE DE 2019 | Y4: A 31 OCTUBRE DE 2019 | AK4: A 31 OCTUBRE DE 2019
A6: 2020 | M6: 2021 | Q6: 2020 | Y6: 2022 | AK6: 2020-2022
A7: CODIGO SECRETARIA DE HACIENDA | B7: CONCEPTO | C7: PRESUPUESTO INICIAL | D7: MODIFICACIONES MES | E7: MODIFICACIONES ACUMULADAS | F7: PRESUPUESTO DEFINITIVO | G7: COMPROMISOS MES | H7: COMPROMISOS ACUMULADOS | I7: % EJEC PPTAL | J7: DISPONIBILIDADES MES | K7: DISPONIBILIDADES ACUMULADAS | L7: SALDO DISPONIBLE | M7: CODIGO SECRETARIA DE HACIENDA | N7: CONCEPTO | O7: PRESUPUESTO INICIAL | P7: MODIFICACIONES MES | Q7: MODIFICACIONES ACUMULADAS | R7: PRESUPUESTO DEFINITIVO | S7: COMPROMISOS MES | T7: COMPROMISOS ACUMULADOS | U7: % EJEC PPTAL | V7: DISPONIBILIDADES MES | W7: DISPONIBILIDADES ACUMULADAS | X7: SALDO DISPONIBLE | Y7: CODIGO SECRETARIA DE HACIENDA | Z7: CONCEPTO | AA7: PRESUPUESTO INICIAL | AB7: MODIFICACIONES MES | AC7: MODIFICACIONES ACUMULADAS | AD7: PRESUPUESTO DEFINITIVO | AE7: COMPROMISOS MES | AF7: COMPROMISOS ACUMULADOS | AG7: % EJEC PPTAL | AH7: DISPONIBILIDADES MES | AI7: DISPONIBILIDADES ACUMULADAS | AJ7: SALDO DISPONIBLE | AK7: CODIGO SECRETARIA DE HACIENDA | AL7: CONCEPTO | AM7: Presupuesto Inicial VF Total | AN7: Modificaciones mes VF Total | AO7: Modificaciones Acumuladas VF Total | AP7: Presupuesto Definitivo VF Total | AQ7: Compromisos mes Total | AR7: Compromisos Acumulados Total | AS7: % EJEC PPTAL | AT7: Disponibilidades mes Total | AU7: Disponibilidades Acumuladas Total | AV7: Saldo Disponible Total
A8: 3 | B8: TOTAL GASTOS | C8: =C9 -> 192730564846 | D8: =D9 -> 0 | E8: 643832416558 | F8: 836562981404 | G8: 1162179880 | H8: 355942405411 | I8: =H8/F8 -> 0.4254818983 | J8: -1162179880 | K8: 454600236433 | L8: 26020339560 | M8: 3 | N8: TOTAL GASTOS | O8: =O9 -> 65381426116 | P8: =P9 -> 0 | Q8: =Q9 -> 268961000962 | R8: =R9 -> 334342427078 | S8: =S9 -> 1217605708 | T8: =T9 -> 89587672574 | U8: =T8/R8 -> 0.2679518521 | V8: =V9 -> -1217605708 | W8: =W9 -> 243857777622 | X8: =X9 -> 896976882 | Y8: 3 | Z8: TOTAL GASTOS | AA8: =AA9 -> 0 | AB8: 0 | AC8: 25071261728 | AD8: 25071261728 | AE8: 0 | AF8: 0 | AG8: 0 | AH8: =AH9 -> 0 | AI8: 25071261728 | AJ8: 0 | AK8: 3 | AL8: TOTAL GASTOS | AM8: =AM9 -> 258111990962 | AN8: =AN9 -> 0 | AO8: 937864679248 | AP8: 1195976670210 | AQ8: 2379785588 | AR8: 445530077985 | AS8: =AR8/AP8 -> 0.3725240543 | AT8: =AT9 -> -2379785588 | AU8: =AU9 -> 723529275783 | AV8: =AV9 -> 26917316442
A9: 330000000000000 | B9: GASTOS | C9: 192730564846 | D9: 0 | E9: 643832416558 | F9: 836562981404 | G9: 1162179880 | H9: 355942405411 | I9: =H9/F9 -> 0.4254818983 | J9: -1162179880 | K9: 454600236433 | L9: 26020339560 | M9: 330000000000000 | N9: GASTOS | O9: 65381426116 | P9: 0 | Q9: 268961000962 | R9: 334342427078 | S9: 1217605708 | T9: 89587672574 | U9: =T9/R9 -> 0.2679518521 | V9: -1217605708 | W9: 243857777622 | X9: 896976882 | Y9: 330000000000000 | Z9: GASTOS | AA9: 0 | AB9: 0 | AC9: 25071261728 | AD9: 25071261728 | AE9: 0 | AF9: 0 | AG9: 0 | AH9: 0 | AI9: 25071261728 | AJ9: 0 | AK9: 330000000000000 | AL9: GASTOS | AM9: 258111990962 | AN9: 0 | AO9: 937864679248 | AP9: 1195976670210 | AQ9: 2379785588 | AR9: 445530077985 | AS9: =AR9/AP9 -> 0.3725240543 | AT9: -2379785588 | AU9: 723529275783 | AV9: 26917316442
A10: 334000000000000 | B10: INVERSION | C10: 192730564846 | D10: 0 | E10: 643832416558 | F10: 836562981404 | G10: 1162179880 | H10: 355942405411 | I10: 0.4254818983 | J10: -1162179880 | K10: 454600236433 | L10: 26020339560 | M10: 334000000000000 | N10: INVERSION | O10: 65381426116 | P10: 0 | Q10: 268961000962 | R10: 334342427078 | S10: 1217605708 | T10: 89587672574 | U10: 0.2679518521 | V10: -1217605708 | W10: 243857777622 | X10: 896976882 | Y10: 334000000000000 | Z10: INVERSION | AA10: 0 | AB10: 0 | AC10: 25071261728 | AD10: 25071261728 | AE10: 0 | AF10: 0 | AG10: 0 | AH10: 0 | AI10: 25071261728 | AJ10: 0 | AK10: 334000000000000 | AL10: INVERSION | AM10: 258111990962 | AN10: 0 | AO10: 937864679248 | AP10: 1195976670210 | AQ10: 2379785588 | AR10: 445530077985 | AS10: 0.3725240543 | AT10: -2379785588 | AU10: 723529275783 | AV10: 26917316442
A11: 334010000000000 | B11: DIRECTA | C11: 192730564846 | D11: 0 | E11: 643832416558 | F11: 836562981404 | G11: 1162179880 | H11: 355942405411 | I11: 0.4254818983 | J11: -1162179880 | K11: 454600236433 | L11: 26020339560 | M11: 334010000000000 | N11: DIRECTA | O11: 65381426116 | P11: 0 | Q11: 268961000962 | R11: 334342427078 | S11: 1217605708 | T11: 89587672574 | U11: 0.2679518521 | V11: -1217605708 | W11: 243857777622 | X11: 896976882 | Y11: 334010000000000 | Z11: DIRECTA | AA11: 0 | AB11: 0 | AC11: 25071261728 | AD11: 25071261728 | AE11: 0 | AF11: 0 | AG11: 0 | AH11: 0 | AI11: 25071261728 | AJ11: 0 | AK11: 334010000000000 | AL11: DIRECTA | AM11: 258111990962 | AN11: 0 | AO11: 937864679248 | AP11: 1195976670210 | AQ11: 2379785588 | AR11: 445530077985 | AS11: 0.3725240543 | AT11: -2379785588 | AU11: 723529275783 | AV11: 26917316442
A12: 334011500000000 | B12: BOGOTÁ MEJOR PARA TODOS | C12: 192730564846 | D12: 0 | E12: 643832416558 | F12: 836562981404 | G12: 1162179880 | H12: 355942405411 | I12: 0.4254818983 | J12: -1162179880 | K12: 454600236433 | L12: 26020339560 | M12: 334011500000000 | N12: BOGOTÁ MEJOR PARA TODOS | O12: 65381426116 | P12: 0 | Q12: 268961000962 | R12: 334342427078 | S12: 1217605708 | T12: 89587672574 | U12: 0.2679518521 | V12: -1217605708 | W12: 243857777622 | X12: 896976882 | Y12: 334011500000000 | Z12: BOGOTÁ MEJOR PARA TODOS | AA12: 0 | AB12: 0 | AC12: 25071261728 | AD12: 25071261728 | AE12: 0 | AF12: 0 | AG12: =AF12/AD12 -> 0 | AH12: 0 | AI12: 25071261728 | AJ12: 0 | AK12: 334011500000000 | AL12: BOGOTÁ MEJOR PARA TODOS | AM12: 258111990962 | AN12: 0 | AO12: 937864679248 | AP12: 1195976670210 | AQ12: 2379785588 | AR12: 445530077985 | AS12: 0.3725240543 | AT12: -2379785588 | AU12: 723529275783 | AV12: 26917316442
A13: 334011502000000 | B13: PILAR DEMOCRACIA URBANA | C13: 192730564846 | D13: 0 | E13: 643832416558 | F13: 836562981404 | G13: 1162179880 | H13: 355942405411 | I13: 0.4254818983 | J13: -1162179880 | K13: 454600236433 | L13: 26020339560 | M13: 334011502000000 | N13: PILAR DEMOCRACIA URBANA | O13: 65381426116 | P13: 0 | Q13: 268961000962 | R13: 334342427078 | S13: 1217605708 | T13: 89587672574 | U13: 0.2679518521 | V13: -1217605708 | W13: 243857777622 | X13: 896976882 | Y13: 334011502000000 | Z13: PILAR DEMOCRACIA URBANA | AA13: 0 | AB13: 0 | AC13: 25071261728 | AD13: 25071261728 | AE13: 0 | AF13: 0 | AG13: =AF13/AD13 -> 0 | AH13: 0 | AI13: 25071261728 | AJ13: 0 | AK13: 334011502000000 | AL13: PILAR DEMOCRACIA URBANA | AM13: 258111990962 | AN13: 0 | AO13: 937864679248 | AP13: 1195976670210 | AQ13: 2379785588 | AR13: 445530077985 | AS13: 0.3725240543 | AT13: -2379785588 | AU13: 723529275783 | AV13: 26917316442
A14: 334011502130000 | B14: INFRAESTRUCTURA PARA EL DESARROLLO DEL HÁBITAT. | C14: 192730564846 | D14: 0 | E14: 643832416558 | F14: 836562981404 | G14: 1162179880 | H14: 355942405411 | I14: 0.4254818983 | J14: -1162179880 | K14: 454600236433 | L14: 26020339560 | M14: 334011502130000 | N14: INFRAESTRUCTURA PARA EL DESARROLLO DEL HÁBITAT. | O14: 65381426116 | P14: 0 | Q14: 268961000962 | R14: 334342427078 | S14: 1217605708 | T14: 89587672574 | U14: 0.2679518521 | V14: -1217605708 | W14: 243857777622 | X14: 896976882 | Y14: 334011502130000 | Z14: INFRAESTRUCTURA PARA EL DESARROLLO DEL HÁBITAT. | AA14: 0 | AB14: 0 | AC14: 25071261728 | AD14: 25071261728 | AE14: 0 | AF14: 0 | AG14: 0 | AH14: 0 | AI14: 25071261728 | AJ14: 0 | AK14: 334011502130000 | AL14: INFRAESTRUCTURA PARA EL DESARROLLO DEL HÁBITAT. | AM14: 258111990962 | AN14: 0 | AO14: 937864679248 | AP14: 1195976670210 | AQ14: 2379785588 | AR14: 445530077985 | AS14: 0.3725240543 | AT14: -2379785588 | AU14: 723529275783 | AV14: 26917316442
A15: 334011502130133 | B15: INFRAESTRUCTURA PARA EL DESARROLLO DEL HÁBITAT. | C15: =SUM(C16:C27) -> 192730564846 | D15: =SUM(D16:D27) -> 0 | E15: 643832416558 | F15: 836562981404 | G15: 1162179880 | H15: 355942405411 | I15: 0.4254818983 | J15: =SUM(J16:J27) -> -1162179880 | K15: =SUM(K16:K27) -> 454600236433 | L15: =SUM(L16:L27) -> 26020339560 | M15: 334011502130133 | N15: INFRAESTRUCTURA PARA EL DESARROLLO DEL HÁBITAT. | O15: =SUM(O16:O27) -> 65381426116 | P15: =SUM(P16:P27) -> 0 | Q15: 268961000962 | R15: 334342427078 | S15: 1217605708 | T15: 89587672574 | U15: 0.2679518521 | V15: =SUM(V16:V27) -> -1217605708 | W15: =SUM(W16:W27) -> 243857777622 | X15: =SUM(X16:X27) -> 896976882 | Y15: 334011502130133 | Z15: INFRAESTRUCTURA PARA EL DESARROLLO DEL HÁBITAT. | AA15: =SUM(AA16:AA27) -> 0 | AB15: =SUM(AB16:AB27) -> 0 | AC15: 25071261728 | AD15: 25071261728 | AE15: 0 | AF15: 0 | AG15: 0 | AH15: =SUM(AH16:AH27) -> 0 | AI15: =SUM(AI16:AI27) -> 25071261728 | AJ15: =SUM(AJ16:AJ27) -> 0 | AK15: 334011502130133 | AL15: INFRAESTRUCTURA PARA EL DESARROLLO DEL HÁBITAT. | AM15: =SUM(AM16:AM27) -> 258111990962 | AN15: =SUM(AN16:AN27) -> 0 | AO15: 937864679248 | AP15: 1195976670210 | AQ15: 2379785588 | AR15: 445530077985 | AS15: 0.3725240543 | AT15: =SUM(AT16:AT27) -> -2379785588 | AU15: =SUM(AU16:AU27) -> 723529275783 | AV15: =SUM(AV16:AV27) -> 26917316442
A16: 334011502130133000019 | B16: CONST. REDES LOCALES SERVICIO DE ALCANTARILLADO PLUVIAL | C16: 0 | D16: 0 | E16: 2189443005 | F16: 2189443005 | G16: 0 | H16: 0 | I16: 0 | J16: 0 | K16: 2189443005 | L16: 0 | M16: 334011502130133000019 | N16: CONST. REDES LOCALES SERVICIO DE ALCANTARILLADO PLUVIAL | O16: 0 | P16: 0 | Q16: 0 | R16: 0 | S16: 0 | T16: 0 | U16: 0 | V16: 0 | W16: 0 | X16: 0 | Y16: 334011502130133000019 | Z16: CONST. REDES LOCALES SERVICIO DE ALCANTARILLADO PLUVIAL | AA16: 0 | AB16: 0 | AC16: 0 | AD16: 0 | AE16: 0 | AF16: 0 | AG16: 0 | AH16: 0 | AI16: 0 | AJ16: 0 | AK16: 334011502130133000019 | AL16: CONST. REDES LOCALES SERVICIO DE ALCANTARILLADO PLUVIAL | AM16: 0 | AN16: 0 | AO16: 2189443005 | AP16: 2189443005 | AQ16: 0 | AR16: 0 | AS16: 0 | AT16: 0 | AU16: 2189443005 | AV16: 0
A17: 334011502130133000020 | B17: CONST. REDES LOCALES SERVICIO DE ALCANTARILLADO SANITARIO | C17: 0 | D17: 0 | E17: 18367914018 | F17: 18367914018 | G17: 0 | H17: 0 | I17: 0 | J17: 0 | K17: 2830033609 | L17: 15537880409 | M17: 334011502130133000020 | N17: CONST. REDES LOCALES SERVICIO DE ALCANTARILLADO SANITARIO | O17: 0 | P17: 0 | Q17: 0 | R17: 0 | S17: 0 | T17: 0 | U17: 0 | V17: 0 | W17: 0 | X17: 0 | Y17: 334011502130133000020 | Z17: CONST. REDES LOCALES SERVICIO DE ALCANTARILLADO SANITARIO | AA17: 0 | AB17: 0 | AC17: 0 | AD17: 0 | AE17: 0 | AF17: 0 | AG17: 0 | AH17: 0 | AI17: 0 | AJ17: 0 | AK17: 334011502130133000020 | AL17: CONST. REDES LOCALES SERVICIO DE ALCANTARILLADO SANITARIO | AM17: 0 | AN17: 0 | AO17: 18367914018 | AP17: 18367914018 | AQ17: 0 | AR17: 0 | AS17: 0 | AT17: 0 | AU17: 2830033609 | AV17: 15537880409
A18: 334011502130133000050 | B18: REN, REHAB O REP SIST ABAST, DIST MATRIZ Y RED LOCAL AC. | C18: 0 | D18: 0 | E18: 253416397680 | F18: 253416397680 | G18: 1162179880 | H18: 40552152275 | I18: 0.1600218165 | J18: -1162179880 | K18: 212864245405 | L18: 0 | M18: 334011502130133000050 | N18: REN, REHAB O REP SIST ABAST, DIST MATRIZ Y RED LOCAL AC. | O18: 0 | P18: 0 | Q18: 207757546288 | R18: 207757546288 | S18: 1217605708 | T18: 11885366213 | U18: 0.05720786766 | V18: -1217605708 | W18: 195872180075 | X18: 0 | Y18: 334011502130133000050 | Z18: REN, REHAB O REP SIST ABAST, DIST MATRIZ Y RED LOCAL AC. | AA18: 0 | AB18: 0 | AC18: 25071261728 | AD18: 25071261728 | AE18: 0 | AF18: 0 | AG18: 0 | AH18: 0 | AI18: 25071261728 | AJ18: 0 | AK18: 334011502130133000050 | AL18: REN, REHAB O REP SIST ABAST, DIST MATRIZ Y RED LOCAL AC. | AM18: 0 | AN18: 0 | AO18: 486245205696 | AP18: 486245205696 | AQ18: 2379785588 | AR18: 52437518488 | AS18: 0.1078417183 | AT18: -2379785588 | AU18: 433807687208 | AV18: 0
A19: 334011502130133000051 | B19: REN, REHAB O REP SIST TRONCAL SECUNDARIO Y LOCAL ALC. SANITA | C19: 0 | D19: 0 | E19: 51779699220 | F19: 51779699220 | G19: 0 | H19: 40720148701 | I19: 0.7864114569 | J19: 0 | K19: 11059550519 | L19: 0 | M19: 334011502130133000051 | N19: REN, REHAB O REP SIST TRONCAL SECUNDARIO Y LOCAL ALC. SANITA | O19: 0 | P19: 0 | Q19: 23713208931 | R19: 23713208931 | S19: 0 | T19: 10739032350 | U19: 0.4528713251 | V19: 0 | W19: 12974176581 | X19: 0 | Y19: 334011502130133000051 | Z19: REN, REHAB O REP SIST TRONCAL SECUNDARIO Y LOCAL ALC. SANITA | AA19: 0 | AB19: 0 | AC19: 0 | AD19: 0 | AE19: 0 | AF19: 0 | AG19: 0 | AH19: 0 | AI19: 0 | AJ19: 0 | AK19: 334011502130133000051 | AL19: REN, REHAB O REP SIST TRONCAL SECUNDARIO Y LOCAL ALC. SANITA | AM19: 0 | AN19: 0 | AO19: 75492908151 | AP19: 75492908151 | AQ19: 0 | AR19: 51459181051 | AS19: 0.6816425849 | AT19: 0 | AU19: 24033727100 | AV19: 0
A20: 334011502130133000052 | B20: REN REHAB O REP SIST TRONCAL SECUNDARIO Y LOCAL ALC. PLUVIAL | C20: 0 | D20: 0 | E20: 8269398398 | F20: 8269398398 | G20: 0 | H20: 5556375192 | I20: 0.6719201234 | J20: 0 | K20: 2713023206 | L20: 0 | M20: 334011502130133000052 | N20: REN REHAB O REP SIST TRONCAL SECUNDARIO Y LOCAL ALC. PLUVIAL | O20: 0 | P20: 0 | Q20: 4044016744 | R20: 4044016744 | S20: 0 | T20: 1581847895 | U20: 0.3911576027 | V20: 0 | W20: 2462168849 | X20: 0 | Y20: 334011502130133000052 | Z20: REN REHAB O REP SIST TRONCAL SECUNDARIO Y LOCAL ALC. PLUVIAL | AA20: 0 | AB20: 0 | AC20: 0 | AD20: 0 | AE20: 0 | AF20: 0 | AG20: 0 | AH20: 0 | AI20: 0 | AJ20: 0 | AK20: 334011502130133000052 | AL20: REN REHAB O REP SIST TRONCAL SECUNDARIO Y LOCAL ALC. PLUVIAL | AM20: 0 | AN20: 0 | AO20: 12313415142 | AP20: 12313415142 | AQ20: 0 | AR20: 7138223087 | AS20: 0.5797110716 | AT20: 0 | AU20: 5175192055 | AV20: 0
A21: 334011502130133000053 | B21: REN, REHAB O REP SIST TRONCAL, SECUNDARIO Y LOCAL ALC. COMBI | C21: 1979233837 | D21: 0 | E21: 20888409906 | F21: 22867643743 | G21: 0 | H21: 1979233837 | I21: 0.08655171732 | J21: 0 | K21: 20888409906 | L21: 0 | M21: 334011502130133000053 | N21: REN, REHAB O REP SIST TRONCAL, SECUNDARIO Y LOCAL ALC. COMBI | O21: 0 | P21: 0 | Q21: 9628114834 | R21: 9628114834 | S21: 0 | T21: 0 | U21: 0 | V21: 0 | W21: 9628114834 | X21: 0 | Y21: 334011502130133000053 | Z21: REN, REHAB O REP SIST TRONCAL, SECUNDARIO Y LOCAL ALC. COMBI | AA21: 0 | AB21: 0 | AC21: 0 | AD21: 0 | AE21: 0 | AF21: 0 | AG21: 0 | AH21: 0 | AI21: 0 | AJ21: 0 | AK21: 334011502130133000053 | AL21: REN, REHAB O REP SIST TRONCAL, SECUNDARIO Y LOCAL ALC. COMBI | AM21: 1979233837 | AN21: 0 | AO21: 30516524740 | AP21: 32495758577 | AQ21: 0 | AR21: 1979233837 | AS21: 0.06090745142 | AT21: 0 | AU21: 30516524740 | AV21: 0
A22: 334011502130133000054 | B22: ACCIONES PARA EL SANEAMIENTO DEL RÍO BOGOTÁ | C22: 189945839941 | D22: 0 | E22: 0 | F22: 189945839941 | G22: 0 | H22: 189945839941 | I22: 1 | J22: 0 | K22: 0 | L22: 0 | M22: 334011502130133000054 | N22: ACCIONES PARA EL SANEAMIENTO DEL RÍO BOGOTÁ | O22: 65381426116 | P22: 0 | Q22: 0 | R22: 65381426116 | S22: 0 | T22: 65381426116 | U22: 1 | V22: 0 | W22: 0 | X22: 0 | Y22: 334011502130133000054 | Z22: ACCIONES PARA EL SANEAMIENTO DEL RÍO BOGOTÁ | AA22: 0 | AB22: 0 | AC22: 0 | AD22: 0 | AE22: 0 | AF22: 0 | AG22: 0 | AH22: 0 | AI22: 0 | AJ22: 0 | AK22: 334011502130133000054 | AL22: ACCIONES PARA EL SANEAMIENTO DEL RÍO BOGOTÁ | AM22: 255327266057 | AN22: 0 | AO22: 0 | AP22: 255327266057 | AQ22: 0 | AR22: 255327266057 | AS22: 1 | AT22: 0 | AU22: 0 | AV22: 0
A23: 334011502130133000068 | B23: CONST, REN, REHAB O REP REDES ASOCIADAS INFRAESTRUCTURA VIAL | C23: 0 | D23: 0 | E23: 80703151888 | F23: 80703151888 | G23: 0 | H23: 0 | I23: 0 | J23: 0 | K23: 70220692737 | L23: 10482459151 | M23: 334011502130133000068 | N23: CONST, REN, REHAB O REP REDES ASOCIADAS INFRAESTRUCTURA VIAL | O23: 0 | P23: 0 | Q23: 11145071561 | R23: 11145071561 | S23: 0 | T23: 0 | U23: 0 | V23: 0 | W23: 10248094679 | X23: 896976882 | Y23: 334011502130133000068 | Z23: CONST, REN, REHAB O REP REDES ASOCIADAS INFRAESTRUCTURA VIAL | AA23: 0 | AB23: 0 | AC23: 0 | AD23: 0 | AE23: 0 | AF23: 0 | AG23: 0 | AH23: 0 | AI23: 0 | AJ23: 0 | AK23: 334011502130133000068 | AL23: CONST, REN, REHAB O REP REDES ASOCIADAS INFRAESTRUCTURA VIAL | AM23: 0 | AN23: 0 | AO23: 91848223449 | AP23: 91848223449 | AQ23: 0 | AR23: 0 | AS23: 0 | AT23: 0 | AU23: 80468787416 | AV23: 11379436033
A24: 334011502130133000081 | B24: CORREDORES AMBIENTALES | C24: 0 | D24: 0 | E24: 170245190978 | F24: 170245190978 | G24: 0 | H24: 76383164397 | I24: 0.4486656214 | J24: 0 | K24: 93862026581 | L24: 0 | M24: 334011502130133000081 | N24: CORREDORES AMBIENTALES | O24: 0 | P24: 0 | Q24: 0 | R24: 0 | S24: 0 | T24: 0 | U24: 0 | V24: 0 | W24: 0 | X24: 0 | Y24: 334011502130133000081 | Z24: CORREDORES AMBIENTALES | AA24: 0 | AB24: 0 | AC24: 0 | AD24: 0 | AE24: 0 | AF24: 0 | AG24: 0 | AH24: 0 | AI24: 0 | AJ24: 0 | AK24: 334011502130133000081 | AL24: CORREDORES AMBIENTALES | AM24: 0 | AN24: 0 | AO24: 170245190978 | AP24: 170245190978 | AQ24: 0 | AR24: 76383164397 | AS24: 0.4486656214 | AT24: 0 | AU24: 93862026581 | AV24: 0
A25: 334011502130133007334 | B25: CONST Y EXPANSIÓN DEL SISTEMA DE ABASTECIMIENTO Y MATRIZ AC. | C25: 0 | D25: 0 | E25: 30299179428 | F25: 30299179428 | G25: 0 | H25: 0 | I25: 0 | J25: 0 | K25: 30299179428 | L25: 0 | M25: 334011502130133007334 | N25: CONST Y EXPANSIÓN DEL SISTEMA DE ABASTECIMIENTO Y MATRIZ AC. | O25: 0 | P25: 0 | Q25: 12673042604 | R25: 12673042604 | S25: 0 | T25: 0 | U25: 0 | V25: 0 | W25: 12673042604 | X25: 0 | Y25: 334011502130133007334 | Z25: CONST Y EXPANSIÓN DEL SISTEMA DE ABASTECIMIENTO Y MATRIZ AC. | AA25: 0 | AB25: 0 | AC25: 0 | AD25: 0 | AE25: 0 | AF25: 0 | AG25: 0 | AH25: 0 | AI25: 0 | AJ25: 0 | AK25: 334011502130133007334 | AL25: CONST Y EXPANSIÓN DEL SISTEMA DE ABASTECIMIENTO Y MATRIZ AC. | AM25: 0 | AN25: 0 | AO25: 42972222032 | AP25: 42972222032 | AQ25: 0 | AR25: 0 | AS25: 0 | AT25: 0 | AU25: 42972222032 | AV25: 0
A26: 334011502130133007338 | B26: CONSTRUCCIÓN DE REDES LOCALES PARA EL SERVICIO DE ACUEDUCTO | C26: 805491068 | D26: 0 | E26: 1219657523 | F26: 2025148591 | G26: 0 | H26: 805491068 | I26: 0.3977441811 | J26: 0 | K26: 1219657523 | L26: 0 | M26: 334011502130133007338 | N26: CONSTRUCCIÓN DE REDES LOCALES PARA EL SERVICIO DE ACUEDUCTO | O26: 0 | P26: 0 | Q26: 0 | R26: 0 | S26: 0 | T26: 0 | U26: 0 | V26: 0 | W26: 0 | X26: 0 | Y26: 334011502130133007338 | Z26: CONSTRUCCIÓN DE REDES LOCALES PARA EL SERVICIO DE ACUEDUCTO | AA26: 0 | AB26: 0 | AC26: 0 | AD26: 0 | AE26: 0 | AF26: 0 | AG26: 0 | AH26: 0 | AI26: 0 | AJ26: 0 | AK26: 334011502130133007338 | AL26: CONSTRUCCIÓN DE REDES LOCALES PARA EL SERVICIO DE ACUEDUCTO | AM26: 805491068 | AN26: 0 | AO26: 1219657523 | AP26: 2025148591 | AQ26: 0 | AR26: 805491068 | AS26: 0.3977441811 | AT26: 0 | AU26: 1219657523 | AV26: 0
A27: 334011506390179000082 | B27: PLAN DE SANEAMIENTO Y MANEJO DE VERTIMIENTOS | C27: 0 | D27: 0 | E27: 6453974514 | F27: 6453974514 | G27: 0 | H27: 0 | I27: 0 | J27: 0 | K27: 6453974514 | L27: 0 | M27: 334011506390179000082 | N27: PLAN DE SANEAMIENTO Y MANEJO DE VERTIMIENTOS | O27: 0 | P27: 0 | Q27: 0 | R27: 0 | S27: 0 | T27: 0 | U27: 0 | V27: 0 | W27: 0 | X27: 0 | Y27: 334011506390179000082 | Z27: PLAN DE SANEAMIENTO Y MANEJO DE VERTIMIENTOS | AA27: 0 | AB27: 0 | AC27: 0 | AD27: 0 | AE27: 0 | AF27: 0 | AG27: 0 | AH27: 0 | AI27: 0 | AJ27: 0 | AK27: 334011506390179000082 | AL27: PLAN DE SANEAMIENTO Y MANEJO DE VERTIMIENTOS | AM27: 0 | AN27: 0 | AO27: 6453974514 | AP27: 6453974514 | AQ27: 0 | AR27: 0 | AS27: 0 | AT27: 0 | AU27: 6453974514 | AV27: 0

Sheet Gastos P
A2: EMPRESA DE ACUEDUCTO ALCANTARILLADO DE BOGOTA
A3: EJECUCION PERSONERIA
A4: A 31 OCTUBRE DE 2019
A5: CODIGO SECRETARIA DE HACIENDA | B5: RUBRO | C5: PRESUPUESTO INICIAL | D5: MODIFICACIONES MES | E5: MODIFICACIONES ACUMULADAS | F5: PRESUPUESTO DEFINITIVO | G5: SUSPENSION | H5: APROPIACION DISPONIBLE | I5: COMPROMISOS MES | J5: COMPROMISOS ACUMULADOS | K5: % EJEC PPTAL | L5: PAC ACUMULADO | M5: AUTORIZACIONES DE GIRO | O5: % EJEC AUT. GIRO | P5: % EJEC GIROS PAC
M6: MES | N6: ACUMULADO
A7: TOTAL GASTOS + DISPONIBILIDAD FINAL | C7: 5419077626000 | D7: 0 | E7: 306843335701 | F7: 5725920961701 | H7: 5725920961701 | I7: 90524800005 | J7: 2926609539336 | K7: 0.5111159513 | L7: 2931066541229 | M7: 124762610033 | N7: 1586812222920 | O7: 0.27712786 | P7: 0.5413770723
A8: 330000000000000 | B8: GASTOS | C8: 5180526062000 | D8: 0 | E8: 118974927264 | F8: 5299500989264 | H8: 5299500989264 | I8: 90524800005 | J8: 2926609539336 | K8: 0.5522424744 | L8: 2931066541229 | M8: 124762610033 | N8: 1586812222920 | O8: 0.2994267245 | P8: 0.5413770723
A9: 331000000000000 | B9: GASTOS DE FUNCIONAMIENTO | C9: 1291563643000 | D9: 0 | E9: 67092561782 | F9: 1358656204782 | H9: 1358656204782 | I9: 63457063964 | J9: 1101708330525 | K9: 0.8108808738 | L9: 1213220126733 | M9: 64120565777 | N9: 887247748990 | O9: 0.653033303 | P9: 0.7313163782
A10: 331010000000000 | B10: SERVICIOS PERSONALES | C10: 358789399000 | D10: -2273551039 | E10: 1264263543 | F10: 360053662543 | H10: 360053662543 | I10: 20781027182 | J10: 274037370079 | K10: 0.7611014651 | L10: 350450072357 | M10: 23941621352 | N10: 247525433399 | O10: 0.6874681725 | P10: 0.7063072686
A11: 331010100000000 | B11: SERVICIOS PERSONALES ASOCIADOS A LA NOMINA | C11: 225857398000 | D11: 913005546 | E11: 1739885741 | F11: 227597283741 | H11: 227597283741 | I11: 15244633936 | J11: 167006672541 | K11: 0.7337814837 | L11: 227597283741 | M11: 15247991275 | N11: 166830428046 | O11: 0.7330071137 | P11: 0.7330071137
A12: 331010101000000 | B12: SUELDOS PERSONAL DE NOMINA | C12: 126490927000 | E12: 145583526 | F12: 126636510526 | H12: 126636510526 | I12: 9778589777 | J12: 99697825524 | K12: 0.7872755267 | L12: 126636510526 | M12: 9778258531 | N12: 99671597140 | O12: 0.7870684112 | P12: 0.7870684112
A13: 331010102000000 | B13: GASTOS DE REPRESENTACION | C13: 75042000 | F13: 75042000 | H13: 75042000 | I13: 202400 | J13: 202400 | K13: 0.002697156259 | L13: 75042000 | M13: 202400 | N13: 202400 | O13: 0.002697156259 | P13: 0.002697156259
A14: 331010103000000 | B14: HORAS EXTRAS, DOMINICALES, FESTIVOS, RECARGO NOCTURNO | C14: 16278640000 | D14: 913005546 | E14: 1420806862 | F14: 17699446862 | H14: 17699446862 | I14: 1494588155 | J14: 15381264061 | K14: 0.8690251272 | L14: 17699446862 | M14: 1494588155 | N14: 15381264061 | O14: 0.8690251272 | P14: 0.8690251272
A15: 331010104000000 | B15: SUBSIDIO DE TRANSPORTE | C15: 1968514000 | F15: 1968514000 | H15: 1968514000 | I15: 101041125 | J15: 1051048353 | K15: 0.5339298339 | L15: 1968514000 | M15: 101041125 | N15: 1050419172 | O15: 0.5336102116 | P15: 0.5336102116
A16: 331010105000000 | B16: SUBSIDIO DE ALIMENTACION | C16: 9532780000 | F16: 9532780000 | H16: 9532780000 | I16: 688209126 | J16: 7393592549 | K16: 0.7755966831 | L16: 9532780000 | M16: 688209126 | N16: 7391246465 | O16: 0.7753505761 | P16: 0.7753505761
A17: 331010106000000 | B17: BONIFICACION POR SERVICIOS PRESTADOS | C17: 437010000 | F17: 437010000 | H17: 437010000 | I17: 27995760 | J17: 190730918 | K17: 0.4364452026 | L17: 437010000 | M17: 27995760 | N17: 190730918 | O17: 0.4364452026 | P17: 0.4364452026
A18: 331010107000000 | B18: PRIMA SEMESTRAL | C18: 15809419000 | E18: 46745094 | F18: 15856164094 | H18: 15856164094 | I18: 2285689 | J18: 15489070165 | K18: 0.9768485034 | L18: 15856164094 | M18: 2285689 | N18: 15485277348 | O18: 0.976609302 | P18: 0.976609302
A19: 331010109000000 | B19: PRIMA DE NAVIDAD | C19: 16154480000 | E19: 23524325 | F19: 16178004325 | H19: 16178004325 | I19: 30893266 | J19: 212574279 | K19: 0.01313970962 | L19: 16178004325 | M19: 30893266 | N19: 212574279 | O19: 0.01313970962 | P19: 0.01313970962
A20: 331010110000000 | B20: PRIMA DE VACACIONES | C20: 17654651000 | E20: 15176975 | F20: 17669827975 | H20: 17669827975 | I20: 381519182 | J20: 11277694892 | K20: 0.6382458792 | L20: 17669827975 | M20: 381519182 | N20: 11272074292 | O20: 0.637927789 | P20: 0.637927789
A21: 331010111000000 | B21: PRIMA TECNICA | C21: 4209393000 | E21: 68048959 | F21: 4277441959 | H21: 4277441959 | I21: 319147960 | J21: 3273524113 | K21: 0.7652994814 | L21: 4277441959 | M21: 319147960 | N21: 3273524113 | O21: 0.7652994814 | P21: 0.7652994814
A22: 331010112000000 | B22: OTRAS PRIMAS Y BONIFICACIONES | C22: 10407642000 | E22: 20000000 | F22: 10427642000 | H22: 10427642000 | I22: 1517559926 | J22: 7769411656 | K22: 0.7450784804 | L22: 10427642000 | M22: 1521248511 | N22: 7631784227 | O22: 0.7318801534 | P22: 0.7318801534
A23: 331010114000000 | B23: QUINQUENIO | C23: 6155108000 | F23: 6155108000 | H23: 6155108000 | I23: 881277583 | J23: 4795637221 | K23: 0.7791312875 | L23: 6155108000 | M23: 881277583 | N23: 4795637221 | O23: 0.7791312875 | P23: 0.7791312875
A24: 331010115000000 | B24: INDEMNIZACIONES LABORALES | C24: 100000000 | F24: 100000000 | H24: 100000000 | I24: 0 | J24: 0 | K24: 0 | L24: 100000000
A25: 331010116000000 | B25: CONVENCIONES COLECTIVAS O CONVENIOS | C25: 583792000 | F25: 583792000 | H25: 583792000 | I25: 21323987 | J25: 474096410 | K25: 0.8120981617 | L25: 583792000 | M25: 21323987 | N25: 474096410 | O25: 0.8120981617 | P25: 0.8120981617
A26: 331010200000000 | B26: SERVICIOS PERSONALES INDIRECTOS | C26: 67383543000 | D26: -3186556585 | E26: -3594336633 | F26: 63789206367 | H26: 63789206367 | I26: 1117726787 | J26: 53473124008 | K26: 0.8382785592 | L26: 54185616181 | M26: 4208309654 | N26: 31315750518 | O26: 0.490925539 | P26: 0.5779347496
A27: 331010203000000 | B27: HONORARIOS EMPRESA | C27: 54909345000 | D27: -281196481 | E27: 3332539222 | F27: 58241884222 | H27: 58241884222 | I27: 814747375 | J27: 49510857596 | K27: 0.8500902445 | L27: 48747891288 | M27: 3819194982 | N27: 27865772178 | O27: 0.4784490157 | P27: 0.5716303094
A28: 331010204000000 | B28: REMUNERACION SERVICIOS TECNICOS | C28: 1568517000 | D28: -63592785 | E28: -438592785 | F28: 1129924215 | H28: 1129924215 | I28: 0 | J28: 1024764265 | K28: 0.9069318556 | L28: 1020326963 | M28: 86466506 | N28: 515101297 | O28: 0.4558724295 | P28: 0.5048394443
A29: 331010299000000 | B29: OTROS GASTOS DE PERSONAL | C29: 10905681000 | D29: -2841767319 | E29: -6488283070 | F29: 4417397930 | H29: 4417397930 | I29: 302979412 | J29: 2937502147 | K29: 0.6649847248 | L29: 4417397930 | M29: 302648166 | N29: 2934877043 | O29: 0.6643904601 | P29: 0.6643904601
A30: 331010300000000 | B30: APORTES PATRONALES AL SECTOR PRIVADO Y PUBLICO | C30: 65548458000 | E30: 3118714435 | F30: 68667172435 | H30: 68667172435 | I30: 4418666459 | J30: 53557573530 | K30: 0.7799589182 | L30: 68667172435 | M30: 4485320423 | N30: 49379254835 | O30: 0.719110065 | P30: 0.719110065
A31: 331010301000000 | B31: APORTES PATRONALES AL SECTOR PRIVADO | C31: 58397668000 | E31: -11650378433 | F31: 46747289567 | H31: 46747289567 | I31: 3008942423 | J31: 36789891524 | K31: 0.7869951791 | L31: 46747289567 | M31: 3069601061 | N31: 33906040175 | O31: 0.7253049426 | P31: 0.7253049426
A32: 331010301010000 | B32: CESANTIAS FONDOS PRIVADOS | C32: 7625219000 | E32: -2380000000 | F32: 5245219000 | H32: 5245219000 | J32: 5082890907 | K32: 0.9690521801 | L32: 5245219000 | N32: 5082890907 | O32: 0.9690521801 | P32: 0.9690521801
A33: 331010301020000 | B33: PENSIONES FONDOS PRIVADOS | C33: 21171531000 | E33: -11478186868 | F33: 9693344132 | H33: 9693344132 | I33: 608340537 | J33: 6438783381 | K33: 0.6642478894 | L33: 9693344132 | M33: 621855359 | N33: 5826446846 | O33: 0.6010770655 | P33: 0.6010770655
A34: 331010301030000 | B34: SALUD EPS PRIVADAS | C34: 20828865000 | E34: 2207808435 | F34: 23036673435 | H34: 23036673435 | I34: 1866195645 | J34: 19124923283 | K34: 0.8301946606 | L34: 23036673435 | M34: 1890418961 | N34: 17378911469 | O34: 0.7544019547 | P34: 0.7544019547
A35: 331010301050000 | B35: CAJA DE COMPENSACION | C35: 8772053000 | F35: 8772053000 | H35: 8772053000 | I35: 534406241 | J35: 6143293953 | K35: 0.7003256767 | L35: 8772053000 | M35: 557326741 | N35: 5617790953 | O35: 0.6404191759 | P35: 0.6404191759
A36: 331010302000000 | B36: APORTES PATRONALES AL SECTOR PUBLICO | C36: 7150790000 | E36: 14769092868 | F36: 21919882868 | H36: 21919882868 | I36: 1409724036 | J36: 16767682006 | K36: 0.7649530842 | L36: 21919882868 | M36: 1415719362 | N36: 15473214660 | O36: 0.7058986014 | P36: 0.7058986014
A37: 331010302010000 | B37: CESANTIAS FONDOS PÚBLICOS | E37: 2380000000 | F37: 2380000000 | H37: 2380000000 | J37: 2285717049 | K37: 0.9603853147 | L37: 2380000000 | N37: 2285717049 | O37: 0.9603853147 | P37: 0.9603853147
A38: 331010302020000 | B38: PENSIONES FONDOS PÚBLICOS | E38: 11578186868 | F38: 11578186868 | H38: 11578186868 | I38: 1042181280 | J38: 9771977134 | K38: 0.8439989133 | L38: 11578186868 | M38: 1019208935 | N38: 8853419227 | O38: 0.7646637015 | P38: 0.7646637015
A39: 331010302030000 | B39: SALUD EPS PUBLICOS | E39: 600000000 | F39: 600000000 | H39: 600000000 | I39: 21173178 | J39: 238914345 | K39: 0.398190575 | L39: 600000000 | M39: 22079549 | N39: 217343906 | O39: 0.3622398433 | P39: 0.3622398433
A40: 331010302040000 | B40: RIESGOS PROFESIONALES SECTOR PUBLICO | C40: 2124180000 | E40: 210906000 | F40: 2335086000 | H40: 2335086000 | I40: 208658400 | J40: 1969865000 | K40: 0.8435941974 | L40: 2335086000 | M40: 207179100 | N40: 1759736100 | O40: 0.7536065481 | P40: 0.7536065481
A41: 331010302050000 | B41: ICBF | C41: 3036439000 | F41: 3036439000 | H41: 3036439000 | I41: 82606587 | J41: 1500895387 | K41: 0.4942945954 | L41: 3036439000 | M41: 100348287 | N41: 1414155187 | O41: 0.4657281727 | P41: 0.4657281727
A42: 331010302060000 | B42: SENA | C42: 1990171000 | F42: 1990171000 | H42: 1990171000 | I42: 55104591 | J42: 1000313091 | K42: 0.5026267044 | L42: 1990171000 | M42: 66903491 | N42: 942843191 | O42: 0.4737498391 | P42: 0.4737498391
A43: 331020000000000 | B43: GASTOS GENERALES | C43: 500514708000 | D43: 3340932455 | E43: 14239616862 | F43: 514754324862 | H43: 514754324862 | I43: 28394066444 | J43: 414306584792 | K43: 0.8048627564 | L43: 419954170159 | M43: 16304579660 | N43: 305555058892 | O43: 0.5935939615 | P43: 0.7275914388
A44: 331020100000000 | B44: ADQUISICION DE BIENES | C44: 48492183000 | D44: 14667227772 | E44: 17356159334 | F44: 65848342334 | H44: 65848342334 | I44: 4916227701 | J44: 33626420601 | K44: 0.5106646486 | L44: 28884375053 | M44: 874336499 | N44: 16229538490 | O44: 0.2464684442 | P44: 0.5618795096
A45: 331020101000000 | B45: DOTACION | C45: 3286323000 | D45: -19357437 | E45: 455175977 | F45: 3741498977 | H45: 3741498977 | I45: 9139200 | J45: 1965253258 | K45: 0.5252582642 | L45: 2886605729 | M45: 152007595 | N45: 720592996 | O45: 0.1925947329 | P45: 0.2496333284
A46: 331020102000000 | B46: MATERIALES Y SUMINISTROS | C46: 11871646000 | D46: -560234643 | E46: 923113837 | F46: 12794759837 | H46: 12794759837 | I46: 1299339720 | J46: 8786164303 | K46: 0.6867002128 | L46: 6944932184 | M46: 430648227 | N46: 2708430620 | O46: 0.2116828025 | P46: 0.3899866188
A47: 331020103000000 | B47: GASTOS DE COMPUTADOR | C47: 29306737000 | D47: 15449767120 | E47: 16343072385 | F47: 45649809385 | H47: 45649809385 | I47: 3607698781 | J47: 19265251337 | K47: 0.422022602 | L47: 16746948016 | N47: 11286179934 | O47: 0.2472338896 | P47: 0.6739245816
A48: 331020104000000 | B48: COMBUSTIBLES, LUBRICANTES Y LLANTAS | C48: 4027477000 | D48: -202947268 | E48: -365202865 | F48: 3662274135 | H48: 3662274135 | I48: 50000 | J48: 3609751703 | K48: 0.9856585198 | L48: 2305889124 | M48: 291680677 | N48: 1514334940 | O48: 0.4134957909 | P48: 0.6567249588
A49: 331020200000000 | B49: ADQUISICION DE SERVICIOS | C49: 168488698000 | D49: 6347195669 | E49: 1173904825 | F49: 169662602825 | H49: 169662602825 | I49: 16126043305 | J49: 139876924553 | K49: 0.8244416991 | L49: 133298112907 | M49: 7030031728 | N49: 58293423766 | O49: 0.343584401 | P49: 0.4373161967
A50: 331020201000000 | B50: VIATICOS Y GASTOS DE VIAJE | C50: 1178098000 | F50: 1178098000 | H50: 1178098000 | I50: 28634105 | J50: 475703623 | K50: 0.4037895175 | L50: 1178098000 | M50: 38206688 | N50: 419308898 | O50: 0.3559202189 | P50: 0.3559202189
A51: 331020202000000 | B51: GASTOS DE TRANSPORTE Y COMUNICACIÓN | C51: 15506533000 | D51: 421342219 | E51: 232050883 | F51: 15738583883 | H51: 15738583883 | I51: 192959904 | J51: 13699781041 | K51: 0.8704583044 | L51: 10697290798 | M51: 1176625677 | N51: 7791163410 | O51: 0.4950358601 | P51: 0.7283305238
A52: 331020203000000 | B52: IMPRESOS Y PUBLICACIONES | C52: 824609000 | D52: -52341000 | E52: -136646580 | F52: 687962420 | H52: 687962420 | I52: -74977136 | J52: 139448847 | K52: 0.2026983494 | L52: 437346492 | M52: 29062744 | N52: 113477487 | O52: 0.1649472176 | P52: 0.2594681541
A53: 331020204000000 | B53: MANTENIMIENTO Y REPARACIONES | C53: 82189005000 | D53: -164912551 | E53: -4670575396 | F53: 77518429604 | H53: 77518429604 | I53: 20284077 | J53: 58299819378 | K53: 0.752076889 | L53: 58205666878 | M53: 3926371817 | N53: 25402793479 | O53: 0.3277000529 | P53: 0.4364316198
A54: 331020205000000 | B54: ARRENDAMIENTOS | C54: 12050191000 | D54: 77316944 | E54: 157316944 | F54: 12207507944 | H54: 12207507944 | I54: 499046367 | J54: 11040753525 | K54: 0.9044232103 | L54: 9086713297 | M54: 295094775 | N54: 3928336911 | O54: 0.3217967933 | P54: 0.4323165905
A55: 331020206000000 | B55: SEGUROS | C55: 29125848000 | D55: 6535537245 | E55: 6535537245 | F55: 35661385245 | H55: 35661385245 | I55: 15312565472 | J55: 35118934916 | K55: 0.9847888598 | L55: 35661385245 | N55: 13291245641 | O55: 0.3727069364 | P55: 0.3727069364
A56: 331020207000000 | B56: SUMINISTRO DE ALIMENTOS | C56: 4903521000 | D56: -460676951 | E56: -1369894241 | F56: 3533626759 | H56: 3533626759 | I56: 0 | J56: 3323353107 | K56: 0.9404935308 | L56: 1763841904 | M56: 286359747 | N56: 1150201647 | O56: 0.3255017367 | P56: 0.6521001936
A57: 331020208000000 | B57: SERVICIOS PUBLICOS | C57: 5865650000 | E57: 0 | F57: 5865650000 | H57: 5865650000 | I57: 99059517 | J57: 5386421101 | K57: 0.9182990975 | L57: 5442163437 | M57: 482174599 | N57: 3541383076 | O57: 0.6037494695 | P57: 0.6507307465
A58: 331020209000000 | B58: CAPACITACION | C58: 900000000 | D58: 79312400 | E58: 71387432 | F58: 971387432 | H58: 971387432 | I58: 22077999 | J58: 725690671 | K58: 0.7470661521 | L58: 812804516 | M58: 136279599 | N58: 334963705 | O58: 0.344830182 | P58: 0.4121085678
A59: 331020210000000 | B59: BIENESTAR E INCENTIVOS | C59: 4693616000 | E59: 153722082 | F59: 4847338082 | H59: 4847338082 | I59: 0 | J59: 3999963004 | K59: 0.8251875434 | L59: 4832886397 | M59: 41512664 | N59: 55964349 | O59: 0.0115453777 | P59: 0.01157990162
A60: 331020211000000 | B60: PROMOCION INSTITUCIONAL | C60: 6731186000 | E60: 194853750 | F60: 6926039750 | H60: 6926039750 | I60: 26393000 | J60: 3660209020 | K60: 0.5284706921 | L60: 4006598886 | M60: 493021467 | N60: 1559603892 | O60: 0.2251797489 | P60: 0.3892588044
A61: 331020212000000 | B61: INTERESES Y COMISIONES | C61: 3011310000 | E61: 0 | F61: 3011310000 | H61: 3011310000 | I61: 0 | J61: 2723789171 | K61: 0.9045196845 | L61: 328292223 | M61: 39230776 | N61: 155929481 | O61: 0.05178127825 | P61: 0.4749715957
A62: 331020213000000 | B62: SALUD OCUPACIONAL | C62: 1367131000 | D62: -88382637 | E62: 6152706 | F62: 1373283706 | H62: 1373283706 | I62: 0 | J62: 1141455149 | K62: 0.831186698 | L62: 703024834 | M62: 86091175 | N62: 407449790 | O62: 0.2966974619 | P62: 0.5795667099
A63: 331020214000000 | B63: PROGRAMAS Y CONVENIOS INSTITUCIONES | C63: 142000000 | F63: 142000000 | H63: 142000000 | J63: 141602000 | K63: 0.9971971831 | L63: 142000000 | N63: 141602000 | O63: 0.9971971831 | P63: 0.9971971831
A64: 331020300000000 | B64: OTROS GASTOS GENERALES | C64: 283533827000 | D64: -17673490986 | E64: -4290447297 | F64: 279243379703 | H64: 279243379703 | I64: 7351795438 | J64: 240803239638 | K64: 0.8623418034 | L64: 257771682199 | M64: 8400211433 | N64: 231032096636 | O64: 0.8273503095 | P64: 0.8962663962
A65: 331020301000000 | B65: IMPUESTOS, TASAS Y MULTAS | C65: 266871794000 | D65: -11260463477 | E65: -3939336856 | F65: 262932457144 | H65: 262932457144 | I65: 7023994693 | J65: 232013119601 | K65: 0.8824057787 | L65: 248003128813 | M65: 7699960976 | N65: 225096405932 | O65: 0.8560997314 | P65: 0.9076353472
A66: 331020302000000 | B66: SENTENCIAS JUDICIALES | C66: 750000000 | F66: 750000000 | H66: 750000000 | I66: 296787893 | J66: 314844447 | K66: 0.419792596 | L66: 750000000 | M66: 296787893 | N66: 314844447 | O66: 0.419792596 | P66: 0.419792596
A67: 331020399000000 | B67: OTROS GASTOS GENERALES | C67: 15912033000 | D67: -6413027509 | E67: -351110441 | F67: 15560922559 | H67: 15560922559 | I67: 31012852 | J67: 8475275590 | K67: 0.5446512286 | L67: 9018553386 | M67: 403462564 | N67: 5620846257 | O67: 0.3612154894 | P67: 0.6232536435
A68: 331030000000000 | B68: TRANSFERENCIAS CORRIENTES | C68: 312085533000 | D68: -194001993 | E68: 4384425902 | F68: 316469958902 | H68: 316469958902 | I68: 14497460159 | J68: 248059087503 | K68: 0.7838313891 | L68: 284457138788 | M68: 20740257849 | N68: 197318743905 | O68: 0.6234991296 | P68: 0.6936677517
A69: 331030300000000 | B69: TRANSFERENCIAS DE PREVISION Y SEGURIDAD SOCIAL | C69: 311435532000 | D69: -194001993 | E69: 4154075305 | F69: 315589607305 | H69: 315589607305 | I69: 14489888926 | J69: 247878154304 | K69: 0.7854446045 | L69: 283807137788 | M69: 20732686616 | N69: 197137810706 | O69: 0.6246650908 | P69: 0.6946189312
A70: 331030301000000 | B70: PENSIONES Y JUBILACIONES | C70: 199914405000 | E70: -299078879 | F70: 199615326121 | H70: 199615326121 | I70: 13730254493 | J70: 147444674959 | K70: 0.7386440602 | L70: 199615326121 | M70: 14034204117 | N70: 147235479833 | O70: 0.7375960689 | P70: 0.7375960689
A71: 331030302000000 | B71: CESANTIAS | C71: 17646342000 | F71: 17646342000 | H71: 17646342000 | I71: 675874179 | J71: 8905696087 | K71: 0.5046766116 | L71: 17575894599 | M71: 675874179 | N71: 8883413999 | O71: 0.5034139086 | P71: 0.5054316837
A72: 331030303000000 | B72: OTRAS TRANSFERENCIAS DE PREVISION SOCIAL | C72: 93874785000 | D72: -194001993 | E72: 4453154184 | F72: 98327939184 | H72: 98327939184 | I72: 83760254 | J72: 91527783258 | K72: 0.9308420782 | L72: 66615917068 | M72: 6022608320 | N72: 41018916874 | O72: 0.4171644114 | P72: 0.615752491
A73: 331030303010000 | B73: FONDO DE VIVIENDA | C73: 29566811000 | D73: -186753993 | E73: 4460402184 | F73: 34027213184 | H73: 34027213184 | I73: -984746 | J73: 27611937704 | K73: 0.8114663271 | L73: 33044231974 | M73: 1541596218 | N73: 16854989678 | O73: 0.4953385276 | P73: 0.5100735793
A74: 331030303020000 | B74: PAGOS SERVICIOS MEDICOS CONVENCIONALES | C74: 64307974000 | D74: -7248000 | E74: -7248000 | F74: 64300726000 | H74: 64300726000 | I74: 84745000 | J74: 63915845554 | K74: 0.9940143686 | L74: 33571685094 | M74: 4481012102 | N74: 24163927196 | O74: 0.3757955578 | P74: 0.7197710549
A75: 331030400000000 | B75: OTRAS TRANSFERENCIAS | C75: 650001000 | E75: 230350597 | F75: 880351597 | H75: 880351597 | I75: 7571233 | J75: 180933199 | K75: 0.2055237926 | L75: 650001000 | M75: 7571233 | N75: 180933199 | O75: 0.2055237926 | P75: 0.2783583394
A76: 331030401000000 | B76: DESTINATARIOS DE OTRAS TRANSFERENCIAS | C76: 650001000 | E76: 230350597 | F76: 880351597 | H76: 880351597 | I76: 7571233 | J76: 180933199 | K76: 0.2055237926 | L76: 650001000 | M76: 7571233 | N76: 180933199 | O76: 0.2055237926 | P76: 0.2783583394
A77: 331040000000000 | B77: CUENTAS POR PAGAR FUNCIONAMIENTO | C77: 120174003000 | D77: -873379423 | E77: 47204255475 | F77: 167378258475 | H77: 167378258475 | I77: -215489821 | J77: 165305288151 | K77: 0.9876150562 | L77: 158358745429 | M77: 3134106916 | N77: 136848512794 | O77: 0.8176002907 | P77: 0.8641676999
A78: 331040000000000 | B78: CUENTAS POR PAGAR | C78: 120174003000 | D78: -873379423 | E78: 47204255475 | F78: 167378258475 | H78: 167378258475 | I78: -215489821 | J78: 165305288151 | K78: 0.9876150562 | L78: 158358745429 | M78: 3134106916 | N78: 136848512794 | O78: 0.8176002907 | P78: 0.8641676999
A79: 332000000000000 | B79: GASTOS DE OPERACION | C79: 317492682000 | D79: 0 | E79: 23763704174 | F79: 341256386174 | H79: 341256386174 | I79: 7760808542 | J79: 270806506320 | K79: 0.793557329 | L79: 220440107552 | M79: 21272771789 | N79: 153312672119 | O79: 0.4492594962 | P79: 0.6954844734
A80: 332010000000000 | B80: GASTOS DE COMERCIALIZACION | C80: 122590042000 | D80: 0 | E80: 14411627570 | F80: 137001669570 | H80: 137001669570 | I80: 6449794881 | J80: 78804317951 | K80: 0.5752069898 | L80: 49422583568 | M80: 7491566412 | N80: 22891750431 | O80: 0.1670910326 | P80: 0.4631840098
A81: 332010100000000 | B81: COMPRA DE BIENES PARA LA VENTA | C81: 4000000000 | E81: 0 | F81: 4000000000 | H81: 4000000000 | J81: 3999999580 | K81: 0.999999895 | L81: 535753772
A82: 332010101000000 | B82: MEDIDORES | C82: 4000000000 | E82: 0 | F82: 4000000000 | H82: 4000000000 | J82: 3999999580 | K82: 0.999999895 | L82: 535753772
A83: 332010200000000 | B83: COMPRA DE SERVICIOS PARA LA VENTA | C83: 10638855000 | D83: -81203370 | E83: 269351023 | F83: 10908206023 | H83: 10908206023 | I83: 0 | J83: 10780115129 | K83: 0.9882573822 | L83: 5774851051 | M83: 1634338010 | N83: 2333827413 | O83: 0.2139515341 | P83: 0.4041363825
A84: 332010201000000 | B84: GESTION COMERCIAL | C84: 10638855000 | D84: -81203370 | E84: -358875681 | F84: 10279979319 | H84: 10279979319 | I84: 0 | J84: 10151888425 | K84: 0.9875397712 | L84: 5189244529 | M84: 1634338010 | N84: 2015983037 | O84: 0.1961076938 | P84: 0.388492588
A85: 332010204000000 | B85: PROCESO DE ASEO | E85: 628226704 | F85: 628226704 | H85: 628226704 | J85: 628226704 | K85: 1 | L85: 585606522 | N85: 317844376 | O85: 0.5059389771 | P85: 0.5427609906
A86: 332010500000000 | B86: OTROS GASTOS DE COMERCIALIZACION | C86: 107951187000 | D86: 81203370 | E86: 14142276547 | F86: 122093463547 | H86: 122093463547 | I86: 6449794881 | J86: 64024203242 | K86: 0.5243868212 | L86: 43111978745 | M86: 5857228402 | N86: 20557923018 | O86: 0.1683785718 | P86: 0.4768494422
A87: 332010501000000 | B87: MANTENIMIENTO Y MATERIALES OPERACION INFRAESTRUCTURA | C87: 102301187000 | D87: -311455364 | E87: 754418918 | F87: 103055605918 | H87: 103055605918 | I87: 6449794881 | J87: 63874203242 | K87: 0.6198032865 | L87: 43006928409 | M87: 5857228402 | N87: 20542872682 | O87: 0.1993377507 | P87: 0.4776642611
A88: 332010502000000 | B88: COMERCIALIZACION DE ENERGIA | C88: 150000000 | F88: 150000000 | H88: 150000000 | J88: 150000000 | K88: 1 | L88: 105050336 | N88: 15050336 | O88: 0.1003355733 | P88: 0.1432678521
A89: 332010503000000 | B89: FONDO ATENCION EMERGENCIAS | C89: 4000000000 | D89: 392658734 | E89: 13387857629 | F89: 17387857629 | H89: 17387857629
A90: 332010504000000 | B90: FONDO OBLIGACIONES CONTIGENTES | C90: 1500000000 | F90: 1500000000 | H90: 1500000000
A91: 332020000000000 | B91: GASTOS DE PRODUCCION | C91: 119951222000 | E91: -12887505319 | F91: 107063716681 | H91: 107063716681 | I91: 1311100165 | J91: 101516239888 | K91: 0.9481852773 | L91: 92857992925 | M91: 9616017599 | N91: 70134411345 | O91: 0.6550717042 | P91: 0.7552867463
A92: 332020100000000 | B92: INDUSTRIAL | C92: 119951222000 | E92: -12887505319 | F92: 107063716681 | H92: 107063716681 | I92: 1311100165 | J92: 101516239888 | K92: 0.9481852773 | L92: 92857992925 | M92: 9616017599 | N92: 70134411345 | O92: 0.6550717042 | P92: 0.7552867463
A93: 332020101000000 | B93: COMPRA AGUA EN BLOQUE | C93: 19933196000 | E93: -19889848731 | F93: 43347269 | H93: 43347269 | J93: 6835026 | K93: 0.1576806603 | L93: 6835026 | N93: 6835026 | O93: 0.1576806603 | P93: 1
A94: 332020102000000 | B94: ENERGIA PARA BOMBEO | C94: 59707405000 | E94: 800000000 | F94: 60507405000 | H94: 60507405000 | I94: 0 | J94: 60507405000 | K94: 1 | L94: 58889393878 | M94: 6704642646 | N94: 46562448461 | O94: 0.769533059 | P94: 0.7906763068
A95: 332020103000000 | B95: TASA POR USO DE AGUA | C95: 6740115000 | E95: 2165757812 | F95: 8905872812 | H95: 8905872812 | I95: 1164444565 | J95: 7025847843 | K95: 0.7889005369 | L95: 8860651383 | N95: 5860651383 | O95: 0.6580659197 | P95: 0.6614244404
A96: 332020109000000 | B96: PRODUCTOS QUIMICOS | C96: 33570506000 | E96: 4036585600 | F96: 37607091600 | H96: 37607091600 | I96: 146655600 | J96: 33976152019 | K96: 0.9034506678 | L96: 25101112638 | M96: 2911374953 | N96: 17704476475 | O96: 0.4707749449 | P96: 0.7053263626
A97: 332030000000000 | B97: CUENTAS POR PAGAR | C97: 74951418000 | E97: 22239581923 | F97: 97190999923 | H97: 97190999923 | I97: -86504 | J97: 90485948481 | K97: 0.9310116014 | L97: 78159531059 | M97: 4165187778 | N97: 60286510343 | O97: 0.6202890226 | P97: 0.771326408
A98: 332030000000000 | B98: CUENTAS POR PAGAR | C98: 74951418000 | E98: 22239581923 | F98: 97190999923 | H98: 97190999923 | I98: -86504 | J98: 90485948481 | K98: 0.9310116014 | L98: 78159531059 | M98: 4165187778 | N98: 60286510343 | O98: 0.6202890226 | P98: 0.771326408
A99: 333000000000000 | B99: SERVICIO DE LA DEUDA | C99: 153572347000 | E99: 303368570 | F99: 153875715570 | H99: 153875715570 | I99: 85989000 | J99: 132555832595 | K99: 0.8614473837 | L99: 133884888278 | M99: 85989000 | N99: 132555832595 | O99: 0.8614473837 | P99: 0.9900731464
A100: 333010000000000 | B100: DEUDA INTERNA | C100: 133333821000 | E100: -4300000000 | F100: 129033821000 | H100: 129033821000 | J100: 126137407166 | K100: 0.9775530647 | L100: 126157518278 | N100: 126137407166 | O100: 0.9775530647 | P100: 0.9998405873
A101: 333010100000000 | B101: AMORTIZACION | C101: 77404000000 | E101: 37028000000 | F101: 114432000000 | H101: 114432000000 | J101: 114430888888 | K101: 0.9999902902 | L101: 114432000000 | N101: 114430888888 | O101: 0.9999902902 | P101: 0.9999902902
A102: 333010200000000 | B102: INTERESES | C102: 55330821000 | E102: -41328000000 | F102: 14002821000 | H102: 14002821000 | J102: 11706518278 | K102: 0.8360114207 | L102: 11706518278 | N102: 11706518278 | O102: 0.8360114207 | P102: 1
A103: 333010300000000 | B103: COMISIONES Y OTROS | C103: 599000000 | F103: 599000000 | H103: 599000000 | L103: 19000000
A104: 333030000000000 | B104: BONOS PENSIONALES | C104: 3427370000 | E104: 4300000000 | F104: 7727370000 | H104: 7727370000 | I104: 85989000 | J104: 6418425429 | K104: 0.8306093055 | L104: 7727370000 | M104: 85989000 | N104: 6418425429 | O104: 0.8306093055 | P104: 0.8306093055
A105: 333030000000000 | B105: BONOS PENSIONALES | C105: 3427370000 | E105: 4300000000 | F105: 7727370000 | H105: 7727370000 | I105: 85989000 | J105: 6418425429 | K105: 0.8306093055 | L105: 7727370000 | M105: 85989000 | N105: 6418425429 | O105: 0.8306093055 | P105: 0.8306093055
A106: 333040000000000 | B106: CUENTAS POR PAGAR | E106: 2370570 | F106: 2370570 | H106: 2370570 | J106: 0 | K106: 0
A107: 333040000000000 | B107: CUENTAS POR PAGAR | E107: 2370570 | F107: 2370570 | H107: 2370570 | J107: 0 | K107: 0
A108: 333050000000000 | B108: PASIVOS CONTINGENTES | C108: 16811156000 | E108: 300998000 | F108: 17112154000 | H108: 17112154000
A109: 333050000000000 | B109: PASIVOS CONTINGENTES | C109: 16811156000 | E109: 300998000 | F109: 17112154000 | H109: 17112154000
A110: 334000000000000 | B110: INVERSION | C110: 3417897390000 | D110: 0 | E110: 27815292738 | F110: 3445712682738 | H110: 3445712682738 | I110: 19220938499 | J110: 1421538869896 | K110: 0.4125529319 | L110: 1363521418666 | M110: 39283283467 | N110: 413695969216 | O110: 0.1200610751 | P110: 0.3034026188
A111: 334010000000000 | B111: DIRECTA | C111: 1783511313000 | D111: 2381737170 | E111: 23346792258 | F111: 1806858105258 | H111: 1806858105258 | I111: 19350605567 | J111: 630339766542 | K111: 0.3488595838 | L111: 390323621838 | M111: 12558622973 | N111: 60312539281 | O111: 0.03337978733 | P111: 0.1545193166
A112: 334011500000000 | B112: BOGOTA MEJOR PARA TODOS | C112: 1783511313000 | D112: 2381737170 | E112: 23346792258 | F112: 1806858105258 | H112: 1806858105258 | I112: 19350605567 | J112: 630339766542 | K112: 0.3488595838 | L112: 390323621838 | M112: 12558622973 | N112: 60312539281 | O112: 0.03337978733 | P112: 0.1545193166
A113: 334011502000000 | B113: PILAR DEMOCRACIA URBANA | C113: 1590353907000 | D113: -70570733 | E113: -3881498882 | F113: 1586472408118 | H113: 1586472408118 | I113: 4921175126 | J113: 554529978506 | K113: 0.3495364783 | L113: 308512567652 | M113: 9537208002 | N113: 50373092535 | O113: 0.03175163481 | P113: 0.1632772788
A114: 334011502130000 | B114: INFRAESTRUCTURA PARA EL DESARROLLO DEL HABITAT | C114: 1590353907000 | D114: -70570733 | E114: -3881498882 | F114: 1586472408118 | H114: 1586472408118 | I114: 4921175126 | J114: 554529978506 | K114: 0.3495364783 | L114: 308512567652 | M114: 9537208002 | N114: 50373092535 | O114: 0.03175163481 | P114: 0.1632772788
A115: 334011502130133 | B115: INFRAESTRUCTURA PARA EL DESARROLLO DEL HABITAT | C115: 1590353907000 | D115: -70570733 | E115: -3881498882 | F115: 1586472408118 | H115: 1586472408118 | I115: 4921175126 | J115: 554529978506 | K115: 0.3495364783 | L115: 308512567652 | M115: 9537208002 | N115: 50373092535 | O115: 0.03175163481 | P115: 0.1632772788
A116: 334011502130133000019 | B116: 0019 - CONSTRUCCIÓN DE REDES LOCALES PARA EL SERVICIO DE ALC | C116: 46423998000 | D116: -216671042 | E116: 4508231087 | F116: 50932229087 | H116: 50932229087 | I116: 65220776 | J116: 9582035472 | K116: 0.1881330475 | L116: 7345274196 | M116: 783447257 | N116: 1369119690 | O116: 0.02688120498 | P116: 0.1863946333
A117: 334011502130133000020 | B117: 0020 - CONSTRUCCIÓN DE REDES LOCALES PARA EL SERVICIO DE ALC | C117: 67831563000 | E117: -10172098246 | F117: 57659464754 | H117: 57659464754 | I117: -2795222 | J117: 5313417185 | K117: 0.0921516911 | L117: 2501981437 | N117: 392428739 | O117: 0.00680597263 | P117: 0.1568471825
A118: 334011502130133000021 | B118: 0021 - CONSTRUCCIÓN DEL SISTEMA TRONCAL Y SECUNDARIO DE ALCA | C118: 15776019000 | D118: 27750275 | E118: 2811764363 | F118: 18587783363 | H118: 18587783363 | J118: 10535462707 | K118: 0.5667950019 | L118: 3671130023 | N118: 1036392641 | O118: 0.0557566559 | P118: 0.2823088898
A119: 334011502130133000022 | B119: 0022 - CONSTRUCCIÓN DEL SISTEMA TRONCAL Y SECUNDARIO DE ALCA | C119: 16877024000 | D119: 1679557035 | E119: 41756137890 | F119: 58633161890 | H119: 58633161890 | I119: 1555214557 | J119: 48779547495 | K119: 0.8319446866 | L119: 22353145588 | M119: 1109648524 | N119: 12213158309 | O119: 0.2082977945 | P119: 0.5463731384
A120: 334011502130133000050 | B120: 0050 - RENOVACIÓN, REHABILITACIÓN O REPOSICIÓN DE LOS SISTEM | C120: 361732708000 | D120: -1727837526 | E120: -52978572598 | F120: 308754135402 | H120: 308754135402 | I120: 2147450565 | J120: 33737092400 | K120: 0.1092684714 | L120: 78422384236 | M120: 292425060 | N120: 4624176724 | O120: 0.01497689 | P120: 0.05896501068
A121: 334011502130133000051 | B121: 0051 - RENOVACIÓN, REHABILITACIÓN O REPOSICIÓN DEL SISTEMA T | C121: 150553278000 | D121: 3409300754 | E121: -12042370949 | F121: 138510907051 | H121: 138510907051 | I121: 382775886 | J121: 92275054388 | K121: 0.6661934165 | L121: 51361988045 | M121: 665076619 | N121: 4751616384 | O121: 0.03430499796 | P121: 0.09251231436
A122: 334011502130133000052 | B122: 0052 - RENOVACIÓN, REHABILITACIÓN O REPOSICIÓN DEL SISTEMA T | C122: 97926991000 | D122: 819056851 | E122: 2867106089 | F122: 100794097089 | H122: 100794097089 | I122: -107160811 | J122: 62854145417 | K122: 0.6235895477 | L122: 40289320809 | M122: 1769827353 | N122: 5636050576 | O122: 0.05591647466 | P122: 0.1398894412
A123: 334011502130133000053 | B123: 0053 - RENOVACIÓN, REHABILITACIÓN O REPOSICIÓN DEL SISTEMA T | C123: 28895578000 | E123: 967288366 | F123: 29862866366 | H123: 29862866366 | I123: 0 | J123: 15763742149 | K123: 0.5278710341 | L123: 9734597883 | M123: 1436307705 | N123: 4513189563 | O123: 0.1511304879 | P123: 0.4636236255
A124: 334011502130133000054 | B124: 0054 - ACCIONES PARA EL SANEAMIENTO DEL RÍO BOGOTÁ | C124: 85540318000 | E124: 8024474911 | F124: 93564792911 | H124: 93564792911 | J124: 82091036505 | K124: 0.8773710062 | L124: 37092315722 | M124: 697738637 | N124: 786471604 | O124: 0.008405636132 | P124: 0.02120308718
A125: 334011502130133000068 | B125: 0068 - CONSTRUCCIÓN, RENOVACIÓN, REHABILITACIÓN O REPOSICIÓN | C125: 75000000000 | E125: 23220723538 | F125: 98220723538 | H125: 98220723538 | I125: 0 | J125: 737302000 | K125: 0.007506582862 | L125: 563794136 | M125: 80169000 | N125: 296851636 | O125: 0.003022291277 | P125: 0.5265248733
A126: 334011502130133000081 | B126: 0081 - CORREDORES AMBIENTALES | C126: 354634309000 | D126: -5774707069 | E126: 10663652782 | F126: 365297961782 | H126: 365297961782 | I126: 79015587 | J126: 85512929264 | K126: 0.2340909017 | L126: 27025150690 | M126: 215241606 | N126: 7291031638 | O126: 0.01995913583 | P126: 0.2697869004
A127: 334011502130133007334 | B127: 7334 - CONSTRUCCIÓN Y EXPANSIÓN DEL SISTEMA DE ABASTECIMIENT | C127: 249020376000 | D127: 1712979989 | E127: -6669884066 | F127: 242350491934 | H127: 242350491934 | I127: 331403788 | J127: 102085482360 | K127: 0.4212307619 | L127: 24012355210 | M127: 2024363804 | N127: 5998103616 | O127: 0.02474970679 | P127: 0.2497923908
A128: 334011502130133007338 | B128: 7338 - CONSTRUCCIÓN DE REDES LOCALES PARA EL SERVICIO DE ACU | C128: 40141745000 | E128: -16837952049 | F128: 23303792951 | H128: 23303792951 | I128: 470050000 | J128: 5262731164 | K128: 0.2258315277 | L128: 4139129677 | M128: 462962437 | N128: 1464501415 | O128: 0.06284390777 | P128: 0.3538186839
A129: 334011506000000 | B129: EJE TRANSV. SOSTENIB. AMBIENTAL BASADA EFICIENCIA ENERGETICA | C129: 94382111000 | D129: 2452307903 | E129: 32953252905 | F129: 127335363905 | H129: 127335363905 | I129: 4507207536 | J129: 55403279402 | K129: 0.43509735 | L129: 49316498836 | M129: 2317786991 | N129: 8969506573 | O129: 0.0704400278 | P129: 0.1818763859
A130: 334011506380000 | B130: RECUPERACION Y MANEJO ESTRUCTURA ECOLOGICA PRINCIPAL | C130: 8151000000 | D130: 2452307903 | E130: 29052872848 | F130: 37203872848 | H130: 37203872848 | I130: 4507207536 | J130: 14500383522 | K130: 0.3897546791 | L130: 29962161597 | M130: 1964216948 | N130: 6791691322 | O130: 0.182553342 | P130: 0.2266756122
A131: 334011506380177 | B131: CONSOLIDACION DE LA ESTRUCTURA ECOLOGICA PRINCIPAL | C131: 8151000000 | D131: 2452307903 | E131: 29052872848 | F131: 37203872848 | H131: 37203872848 | I131: 4507207536 | J131: 14500383522 | K131: 0.3897546791 | L131: 29962161597 | M131: 1964216948 | N131: 6791691322 | O131: 0.182553342 | P131: 0.2266756122
A132: 334011506380177007341 | B132: 7341 - ADEC.HIDRAULICA RECUP.AMB.HUMED,QUEBRADAS,RIOS CUENCA | C132: 8151000000 | D132: 2452307903 | E132: 29052872848 | F132: 37203872848 | H132: 37203872848 | I132: 4507207536 | J132: 14500383522 | K132: 0.3897546791 | L132: 29962161597 | M132: 1964216948 | N132: 6791691322 | O132: 0.182553342 | P132: 0.2266756122
A133: 334011506380177007341 | B133: 7341 - ADECUACIÓN HIDRÁULICA Y RECUPERACIÓN AMBIENTAL DE HUM | C133: 8151000000 | D133: 2452307903 | E133: 29052872848 | F133: 37203872848 | H133: 37203872848 | I133: 4507207536 | J133: 14500383522 | K133: 0.3897546791 | L133: 29962161597 | M133: 1964216948 | N133: 6791691322 | O133: 0.182553342 | P133: 0.2266756122
A134: 334011506390000 | B134: AMBIENTE SANO PARA LA EQUIDAD Y DISFRUTE DEL CIUDADANO | C134: 86231111000 | E134: 3900380057 | F134: 90131491057 | H134: 90131491057 | I134: 0 | J134: 40902895880 | K134: 0.4538135939 | L134: 19354337239 | M134: 353570043 | N134: 2177815251 | O134: 0.02416264532 | P134: 0.11252337
A135: 334011506390179 | B135: AMBIENTE SANO | C135: 86231111000 | E135: 3900380057 | F135: 90131491057 | H135: 90131491057 | I135: 0 | J135: 40902895880 | K135: 0.4538135939 | L135: 19354337239 | M135: 353570043 | N135: 2177815251 | O135: 0.02416264532 | P135: 0.11252337
A136: 334011506390179000082 | B136: 0082 - PLAN DE SANEAMIENTO Y MANEJO DE VERTIMIENTOS | C136: 86231111000 | E136: 3900380057 | F136: 90131491057 | H136: 90131491057 | I136: 0 | J136: 40902895880 | K136: 0.4538135939 | L136: 19354337239 | M136: 353570043 | N136: 2177815251 | O136: 0.02416264532 | P136: 0.11252337
A137: 334011506390179000082 | B137: 0082 - PLAN DE SANEAMIENTO Y MANEJO DE VERTIMIENTOS | C137: 86231111000 | E137: 3900380057 | F137: 90131491057 | H137: 90131491057 | I137: 0 | J137: 40902895880 | K137: 0.4538135939 | L137: 19354337239 | M137: 353570043 | N137: 2177815251 | O137: 0.02416264532 | P137: 0.11252337
A138: 334011507000000 | B138: EJE TRANSVERSAL GOBIERNO LEGITIMO, FORT. LOCAL Y EFICIENTE | C138: 98775295000 | D138: 0 | E138: -5724961765 | F138: 93050333235 | H138: 93050333235 | I138: 9922222905 | J138: 20406508634 | K138: 0.2193061317 | L138: 32494555350 | M138: 703627980 | N138: 969940173 | O138: 0.01042382267 | P138: 0.0298493136
A139: 334011507420000 | B139: TRANSPARENCIA, GESTION PUBLICA Y SERVICIO A LA CIUDADANIA | C139: 98775295000 | D139: 0 | E139: -5724961765 | F139: 93050333235 | H139: 93050333235 | I139: 9922222905 | J139: 20406508634 | K139: 0.2193061317 | L139: 32494555350 | M139: 703627980 | N139: 969940173 | O139: 0.01042382267 | P139: 0.0298493136
A140: 334011507420185 | B140: FORTALECIMIENTO A LA GESTION PUBLICA EFECTIVA Y EFICIENTE | C140: 98775295000 | D140: 0 | E140: -5724961765 | F140: 93050333235 | H140: 93050333235 | I140: 9922222905 | J140: 20406508634 | K140: 0.2193061317 | L140: 32494555350 | M140: 703627980 | N140: 969940173 | O140: 0.01042382267 | P140: 0.0298493136
A141: 334011507420185000055 | B141: 0055 - FORTALECIMIENTO ADMINISTRATIVO Y OPERATIVO EMPRESARIA | C141: 98775295000 | D141: 0 | E141: -5724961765 | F141: 93050333235 | H141: 93050333235 | I141: 9922222905 | J141: 20406508634 | K141: 0.2193061317 | L141: 32494555350 | M141: 703627980 | N141: 969940173 | O141: 0.01042382267 | P141: 0.0298493136
A142: 334011507420185000055 | B142: 0055 - FORTALECIMIENTO ADMINISTRATIVO Y OPERATIVO EMPRESARIA | C142: 98775295000 | D142: 0 | E142: -5724961765 | F142: 93050333235 | H142: 93050333235 | I142: 9922222905 | J142: 20406508634 | K142: 0.2193061317 | L142: 32494555350 | M142: 703627980 | N142: 969940173 | O142: 0.01042382267 | P142: 0.0298493136
A143: 334020000000000 | B143: TRANSFERENCIAS PARA INVERSION | C143: 872741045000 | D143: -2383465170 | E143: 8326968955 | F143: 881068013955 | H143: 881068013955 | J143: 35105007046 | K143: 0.03984369707 | L143: 409172426056 | N143: 35105007046 | O143: 0.03984369707 | P143: 0.08579514359
A144: 334020200000000 | B144: EMPRESAS DISTRITALES | C144: 872741045000 | D144: -2383465170 | E144: 8326968955 | F144: 881068013955 | H144: 881068013955 | J144: 35105007046 | K144: 0.03984369707 | L144: 409172426056 | N144: 35105007046 | O144: 0.03984369707 | P144: 0.08579514359
A145: 334030000000000 | B145: CUENTAS POR PAGAR | C145: 761645032000 | D145: 1728000 | E145: -3858468475 | F145: 757786563525 | H145: 757786563525 | I145: -129667068 | J145: 756094096308 | K145: 0.9977665648 | L145: 564025370772 | M145: 26724660494 | N145: 318278422889 | O145: 0.4200106444 | P145: 0.5642980607
A146: 334030000000000 | B146: CUENTAS POR PAGAR | C146: 761645032000 | D146: 1728000 | E146: -3858468475 | F146: 757786563525 | H146: 757786563525 | I146: -129667068 | J146: 756094096308 | K146: 0.9977665648 | L146: 564025370772 | M146: 26724660494 | N146: 318278422889 | O146: 0.4200106444 | P146: 0.5642980607
A147: 340000000000000 | B147: DISPONIBILIDAD FINAL | C147: 238551564000 | E147: 187868408437 | F147: 426419972437 | H147: 426419972437
A148: 340000000000000 | B148: DISPONIBILIDAD FINAL | C148: 238551564000 | E148: 187868408437 | F148: 426419972437 | H148: 426419972437
